Cogmind - Beta 9.6 --- EXPLORER MODE // 2020.05.04 @ 12:44:13 // Winter2019/RPGLIKE Player: hemo Result: Establishing 0b11! Performance ------------- Evolutions (9) 4500 Regions Visited (35) 7000 Robots Destroyed (1479) 7395 Value Destroyed (73386) 73386 Prototype IDs (216) 4320 Alien Tech Used (4) 800 Bonus (50640) 50640 TOTAL SCORE: 148041 Bonus ------- Triggered High Security 1500 High Alert Combat Kills 21794 Follower Combat Kills 1903 Aligned with FarCom 300 Met Data Miner 300 Met Imprinter 300 Triggered Deep Caves Wall 500 Exposed GOLEM Chamber 1500 Met Zhirov 300 Met Warlord at Base 500 MAIN.C Attacked Warlord 500 Found Hidden Lab 3000 Pursued by Intercept 1000 Destroyed MAIN.C Guards 500 Met MAIN.C 5000 Destroyed MAIN.C Shell 5000 Destroyed MAIN.C 10000 Win 3000 Friendly Fire -6257 Cogmind --------- Core Integrity 638/900 Matter 300/300 Energy 2699/2700 System Corruption 0% Temperature Cool (0) Movement Rolling (150) Ox6 Location 0b11 Command Parts ------- > --- POWER (2) -------- Vortex Chain Reactor > --- PROPULSION (1) --- High-density Centrium Wheel > --- UTILITY (12) ----- Experimental Coolant Injector Experimental Energy Well Assembled Biocell Array Experimental Terrain Scanner Advanced Targeting Computer Precision Energy Filter Advanced Particle Accelerator Advanced Weapon Cycler Improved Overload Amplifier Improved Overload Regulator Thermal Barrier AEGIS Remote Shield > --- WEAPON (11) ------ Cooled Phase Gun Cooled Phase Gun Cooled Phase Gun Cooled Phase Gun Cooled Phase Gun Cooled Phase Gun Cooled Phase Gun Cooled Phase Gun Cooled Phase Gun Cooled Nova Cannon Graviton Cannon > --- INVENTORY (5) ---- Experimental Energy Well (1000) Improved System Restoration Module Hellfire Missile Launcher Guided Remote Datajack Vortex Lance Peak State ------------ > --- POWER ------------ Vortex Chain Reactor > --- PROPULSION ------- High-density Centrium Wheel > --- UTILITY ---------- Experimental Coolant Injector Experimental Energy Well Assembled Biocell Array Experimental Terrain Scanner Advanced Targeting Computer Advanced Particle Accelerator Advanced Weapon Cycler Improved Overload Amplifier Improved Overload Regulator Thermal Barrier AEGIS Remote Shield Improved System Restoration Module > --- WEAPON ----------- Cooled Phase Gun Cooled Phase Gun Cooled Phase Gun Cooled Phase Gun Cooled Phase Gun Cooled Phase Gun Cooled Phase Gun Cooled Phase Gun Cooled Nova Cannon Graviton Cannon Hellfire Missile Launcher > --- INVENTORY -------- Experimental Coolant Injector Cooled Phase Gun Guided Remote Datajack Nanosword Vortex Lance [Rating: 225] Favorites ----------- Power Cooled Deuterium Engine Engine Cooled Deuterium Engine Power Core Light Nuclear Core Reactor Vortex Chain Reactor Propulsion Armored Wheel Leg Enhanced Flexi-carbon Leg Wheel Armored Wheel Hover Unit Zionite Glidesys I Utility Experimental Terrain Scanner Device Experimental Terrain Scanner Storage Assembled Biocell Array Processor Advanced Core Analyzer Hackware Quantum Router Protection Zionite Weapon Casing Weapon Cooled Phase Gun Energy Gun Cooled Phase Gun Energy Cannon Cooled Nova Cannon Ballistic Gun Light Assault Rifle Ballistic Cannon Graviton Cannon Launcher Hellfire Missile Launcher Special Weapon Remote Datajack Slashing Weapon Phasing Sabre Piercing Weapon Vortex Lance Special Melee Weapon Datajack Build | -11 -10 -10 -10 -9 -8 -8 -7 -7 -7 -7 -6 -6 -6 -6 -6 -6 -5 -5 -5 -5 -5 -4 -4 -4 -4 -4 -4 -4 -3 -3 -3 -3 -2 -1 -1 ------- Run | Scr Mat Min Exi Min Mat Sto Fac Low Low Dat Pro Fac Low Low Zio Dee Pro Fac Upp Upp War Pro Fac Was Fac Upp Upp Zhi Pro Res Arm Lab Res Acc Com Slots Evolved 21 | 4 2 . . 1 3 3 1 . . 1 . . . . . 1 . 1 . . . 1 1 . . . . . . 2 . . . . . Power 1 | . . . . . 1 . . . . . . . . . . . . . . . . . . . . . . . . . . . . . . Propulsion . | . . . . . . . . . . . . . . . . . . . . . . . . . . . . . . . . . . . . Utility 10 | 1 2 . . . 2 1 1 . . 1 . . . . . 1 . 1 . . . . . . . . . . . . . . . . . Weapon 10 | 3 . . . 1 . 2 . . . . . . . . . . . . . . . 1 1 . . . . . . 2 . . . . . Parts Attached 387 | 6 14 4 2 2 37 12 35 . 1 17 4 40 . 2 6 34 2 25 . . 16 1 15 1 10 3 2 1 3 25 6 13 17 3 28 Power 23 | 1 1 . . . 5 2 2 . . 3 . 3 . . . 2 . 1 . . 1 . . . . . . . . . . . . . 2 Engine 12 | 1 . . . . 1 2 2 . . 2 . 3 . . . 1 . . . . . . . . . . . . . . . . . . . Core 6 | . 1 . . . 4 . . . . . . . . . . . . 1 . . . . . . . . . . . . . . . . . Reactor 5 | . . . . . . . . . . 1 . . . . . 1 . . . . 1 . . . . . . . . . . . . . 2 Propulsion 16 | 1 2 . . . 1 . . . . 2 . . . . . 2 . . . . 4 . 1 . . . . . . 1 . . . . 2 Treads . | . . . . . . . . . . . . . . . . . . . . . . . . . . . . . . . . . . . . Leg 2 | . . . . . . . . . . 1 . . . . . . . . . . 1 . . . . . . . . . . . . . . Wheel 12 | 1 2 . . . 1 . . . . 1 . . . . . 1 . . . . 2 . 1 . . . . . . 1 . . . . 2 Hover 2 | . . . . . . . . . . . . . . . . 1 . . . . 1 . . . . . . . . . . . . . . Flight . | . . . . . . . . . . . . . . . . . . . . . . . . . . . . . . . . . . . . Utility 145 | 1 5 1 . . 6 1 8 . 1 7 . 13 . . 2 16 2 12 . . 4 . 9 . 6 . 2 . 1 13 3 6 13 3 10 Device 111 | . 3 1 . . 5 1 8 . 1 3 . 11 . . 2 9 2 12 . . 2 . 7 . 3 . 1 . 1 9 3 3 12 3 9 Storage 12 | . 2 . . . 1 . . . . 2 . 2 . . . 3 . . . . . . . . . . . . . 1 . 1 . . . Processor 6 | . . . . . . . . . . . . . . . . . . . . . 1 . . . 1 . . . . 2 . . 1 . 1 Hackware 6 | . . . . . . . . . . 2 . . . . . . . . . . 1 . . . 1 . . . . 1 . 1 . . . Protection 10 | 1 . . . . . . . . . . . . . . . 4 . . . . . . 2 . 1 . 1 . . . . 1 . . . Artifact . | . . . . . . . . . . . . . . . . . . . . . . . . . . . . . . . . . . . . Weapon 203 | 3 6 3 2 2 25 9 25 . . 5 4 24 . 2 4 14 . 12 . . 7 1 5 1 4 3 . 1 2 11 3 7 4 . 14 Energy Gun 144 | 1 4 . 1 2 16 7 21 . . 1 1 21 . 1 2 11 . 12 . . 4 1 4 1 3 2 . . 2 10 3 5 2 . 6 Energy Cannon 2 | . . . . . . . . . . . . . . . . . . . . . . . . . . . . . . . . . . . 2 Ballistic Gun 14 | 2 2 2 . . 4 1 . . . . 3 . . . . . . . . . . . . . . . . . . . . . . . . Ballistic Cannon 2 | . . . . . . . . . . . . . . . . . . . . . . . . . . . . . . . . . . . 2 Launcher 4 | . . . . . 1 . . . . . . 1 . . . . . . . . . . . . . . . . . . . . . . 2 Special Weapon 14 | . . . . . . . 1 . . 2 . . . . 1 1 . . . . 1 . . . 1 . . 1 . 1 . 2 1 . 2 Impact Weapon . | . . . . . . . . . . . . . . . . . . . . . . . . . . . . . . . . . . . . Slashing Weapon 15 | . . . . . 3 1 3 . . 1 . 2 . 1 1 2 . . . . 1 . . . . . . . . . . . . . . Piercing Weapon 4 | . . . . . . . . . . . . . . . . . . . . . 1 . 1 . . 1 . . . . . . 1 . . Special Melee Weapon 4 | . . 1 1 . 1 . . . . 1 . . . . . . . . . . . . . . . . . . . . . . . . . Unidentified Prototypes 52 | . . 1 . . . 1 . . . 3 . 3 . . . 6 . 1 . . 8 . 3 . . . 1 2 . 5 1 5 4 1 7 Parts Lost 13 | . . . . . . . . . . 2 . 1 . . . 2 . 1 . . . . 1 . 1 . 1 . 1 . . . . . 3 Power . | . . . . . . . . . . . . . . . . . . . . . . . . . . . . . . . . . . . . Propulsion . | . . . . . . . . . . . . . . . . . . . . . . . . . . . . . . . . . . . . Utility 4 | . . . . . . . . . . . . . . . . . . 1 . . . . 1 . 1 . 1 . . . . . . . . Weapon 9 | . . . . . . . . . . 2 . 1 . . . 2 . . . . . . . . . . . . 1 . . . . . 3 Highest Loss Streak 3 | . . . . . . . . . . 2 . 1 . . . 1 . 1 . . . . 1 . 1 . 1 . 1 . . . . . 3 Average Slot Usage (%) 97 | . 97 99 97 90 96 99 99 100 100 93 100 99 100 100 99 97 100 99 100 100 98 95 94 93 94 95 94 92 94 95 95 93 95 96 94 Engine 5 | . 1 . . . . 11 11 11 11 10 10 9 10 10 10 9 10 8 4 4 2 . . . . . . . . . . . . . . Core 1 | . 10 10 10 9 9 1 . . . . . . . . . . . . 4 4 2 . . . . . . . . . . . . . . Reactor 1 | . . . . . . . . . . . . . . . . . . . . . 1 4 4 4 4 4 4 4 4 4 4 3 3 3 3 Wheel 4 | . 11 10 10 9 7 6 5 5 5 4 5 5 5 5 5 4 5 4 4 4 3 4 4 4 4 4 4 4 4 4 4 3 3 3 2 Device 28 | . 15 20 20 19 26 26 32 33 33 26 21 25 26 26 25 24 25 32 33 33 31 27 28 30 30 30 32 31 34 29 28 26 27 30 31 Storage 9 | . 4 20 20 19 15 12 11 11 11 12 15 10 10 10 10 10 10 9 9 9 9 9 8 8 8 8 8 8 8 8 8 7 7 7 7 Hackware 4 | . . . . . . . . . . 4 10 10 10 10 10 10 10 4 4 4 5 9 7 4 3 4 4 4 4 4 4 4 5 3 1 Protection 1 | . 6 . . . . . . . . . . . . . . 1 5 4 4 4 4 4 3 4 4 4 . . . . . . . . . Energy Gun 35 | . 23 20 22 31 31 40 38 38 38 31 28 35 36 35 34 30 35 33 33 33 29 36 35 36 38 38 39 38 37 41 43 42 41 42 37 Naked Turns . | . . . . . . . . . . . . . . . . . . . . . . . . . . . . . . . . . . . . Heaviest Build 155 | 10 22 22 28 33 40 53 68 68 68 69 73 73 71 71 71 102 65 89 89 89 97 100 102 108 112 108 111 111 110 120 121 121 124 125 155 Greatest Support 35 | 10 12 12 12 12 12 12 12 12 12 28 12 12 12 17 17 27 17 17 17 17 35 17 21 21 21 21 21 21 21 25 25 25 25 25 25 Greatest Overweight (x) 18 | 2 3 1 2 2 3 4 5 5 5 5 6 6 5 5 4 5 3 5 5 5 5 5 5 5 5 5 5 5 5 5 4 4 4 4 18 Average Overweight (x) 4 | . . 1 1 2 2 3 4 5 5 4 5 5 5 4 3 3 3 4 5 5 4 5 4 4 4 5 5 4 5 4 4 4 4 4 4 Largest Inventory Capacity 5 | . 2 3 3 3 3 3 3 3 4 4 4 4 4 4 4 4 4 5 5 5 5 5 5 5 5 5 5 5 5 5 5 5 5 5 5 Average Capacity 4 | . . 2 3 3 3 3 3 3 3 4 4 4 4 4 4 4 4 4 5 5 5 5 5 5 5 5 5 5 5 5 5 5 5 5 5 Most Carried 5 | . 2 3 3 3 3 3 3 3 4 4 4 4 4 4 4 4 4 5 5 5 5 5 5 5 5 5 5 5 5 5 5 5 5 5 5 Average Carried 4 | . . 2 2 2 2 3 2 3 3 3 3 3 3 3 4 3 4 4 5 5 4 4 4 5 4 5 4 4 4 4 4 4 5 5 4 Final Capacity 5 | . 2 3 3 3 3 3 3 3 4 4 4 4 4 4 4 4 4 5 5 5 5 5 5 5 5 5 5 5 5 5 5 5 5 5 5 Final Carried 5 | . 2 3 3 3 3 3 3 3 4 3 4 4 3 4 4 4 4 5 5 5 5 5 5 5 5 5 4 5 5 5 5 5 5 5 5 Class Distribution -------------------- 45% | Machinist-Executioner 22% | Wizard-Executioner 10% | Hacker-Executioner 5% | Machinist-Mutant 4% | Hacker-Skirmisher 3% | Wizard-Mutant Dominant Class ---------------- Hacker-Gunner | -10/Materials Hacker-Gunner | -10/Mines Hacker-Mutant | -10/Exiles Hacker-Skirmisher | -9/Mines Hacker-Skirmisher | -8/Materials Hacker-Executioner | -8/Storage Machinist-Executioner | -7/Factory Machinist-Executioner | -7/Lower Caves Machinist-Executioner | -7/Lower Caves Hacker-Executioner | -7/Data Miner Wizard-Executioner | -6/Proximity Caves Wizard-Executioner | -6/Factory Wizard-Executioner | -6/Lower Caves Wizard-Executioner | -6/Lower Caves Wizard-Executioner | -6/Zion Wizard-Executioner | -6/Deep Caves Wizard-Executioner | -5/Proximity Caves Machinist-Executioner | -5/Factory Machinist-Executioner | -5/Upper Caves Machinist-Executioner | -5/Upper Caves Machinist-Mutant | -5/Warlord Wizard-Executioner | -4/Proximity Caves Wizard-Executioner | -4/Factory Machinist-Executioner | -4/Waste Machinist-Executioner | -4/Factory Machinist-Executioner | -4/Upper Caves Machinist-Executioner | -4/Upper Caves Machinist-Executioner | -4/Zhirov Machinist-Executioner | -3/Proximity Caves Machinist-Executioner | -3/Research Machinist-Executioner | -3/Armory Machinist-Mutant | -3/Lab Machinist-Executioner | -2/Research Machinist-Executioner | -1/Access Machinist-Executioner | -1/Command Resources | -11 -10 -10 -10 -9 -8 -8 -7 -7 -7 -7 -6 -6 -6 -6 -6 -6 -5 -5 -5 -5 -5 -4 -4 -4 -4 -4 -4 -4 -3 -3 -3 -3 -2 -1 -1 ----------- Run | Scr Mat Min Exi Min Mat Sto Fac Low Low Dat Pro Fac Low Low Zio Dee Pro Fac Upp Upp War Pro Fac Was Fac Upp Upp Zhi Pro Res Arm Lab Res Acc Com Matter Collected 4809 | 258 198 123 . 40 455 120 409 . 10 171 152 368 50 20 85 333 30 250 . . . 191 150 . 110 10 45 . 81 250 70 123 227 20 460 Remotely . | . . . . . . . . . . . . . . . . . . . . . . . . . . . . . . . . . . . . Salvage Created 76285 | 95 597 317 . 316 2371 1489 6952 . 422 259 1110 8586 82 502 851 1362 1240 6771 318 131 . 1180 5171 1608 9694 141 32 . 1278 11406 2909 123 2323 2292 4357 Parts 3166 | 6 54 4 . 17 148 75 308 3 23 13 33 331 3 16 63 47 46 307 26 4 6 49 198 18 434 10 21 . 34 440 159 5 76 84 105 Haulers Intercepted 56 | . 2 . . . 6 6 7 . . . . 8 . . . . . 3 . . . . 6 . 4 . . . . 8 . . 2 4 . Recyclers Shooed 4 | 1 . . . . . . . . . . . 2 . . . . . . . . . . 1 . . . . . . . . . . . . Parts Field Recycled . | . . . . . . . . . . . . . . . . . . . . . . . . . . . . . . . . . . . . Retrieved Matter . | . . . . . . . . . . . . . . . . . . . . . . . . . . . . . . . . . . . . Parts Self-Destructed . | . . . . . . . . . . . . . . . . . . . . . . . . . . . . . . . . . . . . Prevented . | . . . . . . . . . . . . . . . . . . . . . . . . . . . . . . . . . . . . Kills | -11 -10 -10 -10 -9 -8 -8 -7 -7 -7 -7 -6 -6 -6 -6 -6 -6 -5 -5 -5 -5 -5 -4 -4 -4 -4 -4 -4 -4 -3 -3 -3 -3 -2 -1 -1 ------- Run | Scr Mat Min Exi Min Mat Sto Fac Low Low Dat Pro Fac Low Low Zio Dee Pro Fac Upp Upp War Pro Fac Was Fac Upp Upp Zhi Pro Res Arm Lab Res Acc Com Combat Hostiles Destroyed 1198 | . 18 17 . 6 48 25 131 2 12 4 19 140 1 4 6 52 21 117 8 1 . 24 64 5 157 3 7 . 22 144 55 1 34 27 23 Melee 2 | . . . . . . . . . . . . . . . . 2 . . . . . . . . . . . . . . . . . . . Guns 1118 | . 18 17 . 6 47 24 121 2 11 4 19 124 1 4 6 50 21 103 8 1 . 23 57 5 148 2 7 . 21 139 51 . 31 26 21 AOE 35 | . . . . . 1 1 8 . . . . 13 . . . . . 7 . . . . 3 . 1 . . . . 1 . . . . . Classes Destroyed 33 | 2 4 1 . 1 5 . 5 . . . . 2 . . 3 3 . . . . 1 . . 1 . 1 . . . 2 2 . . . . Worker 31 | . . . . . 3 . 3 . . . . 8 . . . . . 6 . . . . 4 . 1 . . . . 4 . . . 2 . Builder 38 | . . . . . 1 . 2 . . . . 4 . . . . . 9 . . . . 7 . 4 . . . . 8 . . . 3 . Tunneler 6 | 1 . . . . 1 . . . . . . . . . . . . 2 . . . . . . 1 . . . . 1 . . . . . Hauler 56 | . 2 . . . 6 6 7 . . . . 8 . . . . . 3 . . . . 6 . 4 . . . . 8 . . 2 4 . Recycler 36 | 1 . 1 . . . . 5 . . . . 5 . . . . . 3 . . . . 6 . 6 . . . . 3 . . 2 . 4 Carrier 4 | . . . . . . . 1 . . . . . . . . . 1 . . . . . . . . . . . . 2 . . . . . Minesweeper 1 | . . . . . . . . . . . . . . . . . . . . . . . . . . 1 . . . . . . . . . Mechanic 5 | . . . . . . . 1 . . . . 1 . . . . . . . . . . . . 2 . . . . 1 . . . . . Operator 8 | . . . . . 1 1 1 . . . . . . . . . . 1 . . . . 1 . . . . . . 1 1 . 1 . . Drone 5 | . . . . . . . . . . . . . . . . . . . . . . . . . . . . . . 5 . . . . . Watcher 46 | . 3 . . . 5 . 6 . . . . 6 . . . . . 6 . . . . 6 . 6 . . . . 5 . . 1 . 2 Swarmer 134 | . 4 2 . . 5 3 4 2 7 . 4 18 . . . . . 16 6 . . 4 15 . 19 . 5 . 5 9 . . 4 . 2 Saboteur 12 | . . . . . . . . . . . . 2 . . . . . . . . . . 1 . 1 . . . . 3 5 . . . . Grunt 505 | . 14 2 . 5 28 16 81 . 4 . 6 75 . 3 . . 11 49 . . . 4 29 . 69 . . . 13 61 24 . 5 6 . Brawler 36 | . . . . . . . 5 . . . 2 3 . . 1 . 2 4 . . . . . . 12 . . . . 5 1 . . 1 . Duelist 44 | . . . . . 1 1 8 . . . 2 6 . 1 . . 1 2 . . . 6 . . 5 . . . . 9 . . . 2 . Protector 12 | . . . . . . . 4 . . . . 3 . . . . . . . . . . . . 4 . . . . 1 . . . . . Sentry 104 | . . . . 1 9 5 12 . 1 . 2 11 . . . . 2 9 . . . 1 12 . 10 1 1 . 1 14 9 . 2 1 . Demolisher 4 | . . . . . . . . . . . . . . . . . . . . . . . . . . . . . . . 2 . 2 . . Specialist 3 | . . . . . . . . . . . . . . . . . . . . . . . . . . . . . . . 3 . . . . Hunter 113 | . . . . . 5 2 10 . . . 2 11 1 . . . 2 11 . . . 4 2 . 20 . . . 2 22 2 . 5 7 5 Programmer 124 | . . . . . . . 7 . . . 1 10 . 1 . . 2 27 2 . . 4 7 . 18 . 1 . . 20 8 . 2 5 9 Behemoth 11 | . . . . . . . . . . . . 1 . . . . 1 1 . 1 . 1 . . 1 1 . . 1 1 1 . . 1 . Compactor 5 | . . . . . . . . . . . . . . . . . . . . . . . . 5 . . . . . . . . . . . M Guard 2 | . . . . . . . . . . . . . . . . . . . . . . . . . . . . . . . . . . . 2 Enhanced Grunt 4 | . . . . . . . . . . 4 . . . . . . . . . . . . . . . . . . . . . . . . . Tracker 7 | . . . . . . . . . . . . . . . . . . . . . . . . . . . . . . . . . 5 2 . Combat Programmer 9 | . . . . . . . . . . . . . . . . . . . . . . . . . . . . . . . . . 5 2 2 Striker 5 | . . . . . . . . . . . . . . . . . . . . . . . . . . . . . . 1 . . 4 . . Zionite 20 | . . . . . . . . . . . . . . . 20 . . . . . . . . . . . . . . . . . . . . Z-Technician 5 | . . . . . . . . . . . . . . . . 5 . . . . . . . . . . . . . . . . . . . Z-Light 8 | . . . . . . . . . . . . . . . . 8 . . . . . . . . . . . . . . . . . . . Tinkerer 2 | . . . . . . . . . . . . . . . 2 . . . . . . . . . . . . . . . . . . . . Assembler 2 | . . . . . . . . . . . . . . . . 2 . . . . . . . . . . . . . . . . . . . Assembled 53 | . . 13 . . . . . . . . . . . . . 40 . . . . . . . . . . . . . . . . . . . Golem 4 | . . . . . . . . . . . . . . . . 4 . . . . . . . . . . . . . . . . . . . Thug 1 | . . . . . . . . . . . . . . . . . . . . . . . . . . . . . . . . . . . 1 Savage 1 | . . . . . . . . . . . . . . . . . . . . . . . . . . 1 . . . . . . . . . Mutant 6 | . . . . . . . . . . . . . . . 5 . . . . . . . . . . 1 . . . . . . . . . Knight 2 | . . . . . . . . . . . . . . . . . . . . . 2 . . . . . . . . . . . . . . Best Kill Streak 40 | 2 7 6 . 2 9 5 10 2 7 3 5 25 1 3 24 40 7 12 3 1 . 9 17 4 16 1 5 . 11 17 7 1 8 9 5 Combat Bots Only 38 | . 6 6 . 2 7 5 8 2 7 3 5 13 1 3 4 38 7 8 3 1 . 9 9 4 16 1 5 . 11 17 7 1 8 9 5 Max Kills in Single Turn 6 | 1 1 2 . 2 2 3 5 1 2 1 4 6 1 1 3 5 2 4 3 1 1 3 4 1 4 1 3 . 3 6 3 1 3 2 2 Gunslinging 4 | . . 1 . . 1 2 1 . . . 3 3 . . 2 4 1 2 2 . . 1 2 . 3 . 2 . 2 2 2 . 2 1 1 Exploded 4 | . . . . . 1 1 3 . . . . 4 . . . . . 4 . . . . 3 . 1 . . . . 1 . . . . . Melee 1 | . . . . . . . . . . . . . . . . 1 . . . . . . . . . . . . . . . . . . . Uniques/NPCs Destroyed 4 | . . . . . . . . . . 1 . . . . 1 . . . . . . . . . . . . . . . . 1 . . 1 Data Miner (-7/Data Miner) Imprinter (-6/Zion) A5 (-3/Lab) MAIN.C Shell (-1/Command) MAIN.C (-1/Command) Combat | -11 -10 -10 -10 -9 -8 -8 -7 -7 -7 -7 -6 -6 -6 -6 -6 -6 -5 -5 -5 -5 -5 -4 -4 -4 -4 -4 -4 -4 -3 -3 -3 -3 -2 -1 -1 -------- Run | Scr Mat Min Exi Min Mat Sto Fac Low Low Dat Pro Fac Low Low Zio Dee Pro Fac Upp Upp War Pro Fac Was Fac Upp Upp Zhi Pro Res Arm Lab Res Acc Com Damage Taken 18760 | . 166 242 . 33 678 284 1440 9 76 412 403 2768 33 78 93 1934 309 1468 45 39 32 139 820 . 1465 444 112 . 311 1604 832 16 928 364 1183 Core 12284 | . 125 184 . 28 532 221 1126 7 61 331 314 2160 25 59 71 1378 88 502 14 19 24 25 245 . 397 164 72 . 247 1247 665 16 716 287 934 Absorbed by Shields 206 | . . . . . . . . . . . . . . . . . . . . . . . . . . . . . . . . . . . 206 Redirected to Core 10650 | . 92 173 . 15 457 196 970 7 54 302 279 1908 25 59 71 1214 80 359 8 19 24 15 170 . 278 47 72 . 217 1155 600 . 671 256 857 Core Remaining (%) 95 | 100 . . . 100 . 100 . . . . 100 . . . . . 95 . . . . 100 . . . . . . 100 . . 90 100 . 70 Volleys Fired 1499 | 13 44 40 . 4 71 43 149 2 12 8 21 180 1 7 34 39 19 151 7 3 10 24 86 10 163 5 8 3 19 140 52 6 43 35 47 Largest 11 | 1 4 4 . 3 5 7 7 7 7 7 7 7 7 7 7 7 7 7 7 7 7 8 8 9 9 9 9 1 9 11 11 11 11 11 11 Hottest 574 | 50 155 155 . 185 309 441 506 195 195 435 338 440 280 280 375 440 420 372 182 234 182 310 312 312 406 342 302 40 300 394 338 494 338 390 574 Shots Fired 10284 | 13 169 127 . 20 306 213 938 14 78 39 111 1105 7 39 184 215 118 871 43 21 21 192 647 83 1363 37 50 3 164 1352 517 26 443 365 390 Gun 10241 | 13 169 127 . 20 306 213 938 14 78 38 111 1105 7 39 179 214 118 871 43 21 18 192 647 83 1363 37 50 . 164 1352 517 25 442 365 362 Cannon 19 | . . . . . . . . . . . . . . . . . . . . . . . . . . . . . . . . . . . 19 Launcher 2 | . . . . . . . . . . . . . . . . . . . . . . . . . . . . . . . . . . . 2 Special 22 | . . . . . . . . . . 1 . . . . 5 1 . . . . 3 . . . . . . 3 . . . 1 1 . 7 Kinetic 209 | . 88 51 . . 31 . . . . . 27 7 . . . . . . . . . . . . . . . . . . . . . . 5 Thermal 9889 | 13 73 76 . 17 169 176 938 14 78 38 84 1098 6 32 179 214 118 871 43 21 18 192 647 83 1363 37 50 . 164 1352 517 25 442 365 376 Explosive 2 | . . . . . . . . . . . . . . . . . . . . . . . . . . . . . . . . . . . 2 Electromagnetic 162 | . 8 . . 3 106 37 . . . . . . 1 7 . . . . . . . . . . . . . . . . . . . . . Robot Hit Streak 126 | 8 43 21 . 13 43 43 68 5 36 54 28 51 4 16 63 73 46 36 5 14 17 33 46 63 49 28 16 18 29 50 50 20 54 32 126 Robot Miss Streak 4 | 1 1 2 . 1 4 3 2 . 2 2 2 2 1 1 1 2 1 2 2 . . 1 2 1 2 1 1 . 1 4 1 1 4 2 1 Penetration Max . | . . . . . . . . . . . . . . . . . . . . . . . . . . . . . . . . . . . . Secondary Targets 353 | . 4 2 . . 6 11 25 . 1 . 5 34 . 1 6 34 10 29 4 . . 6 23 1 53 . 3 . 11 54 12 . 10 6 2 Max Gunslinging Chain 4 | . 1 1 . . 1 2 2 . 1 . 3 3 . 1 2 4 2 3 2 . . 1 3 1 3 . 2 . 3 3 2 . 2 2 1 Autonomous 53 | . . . . 10 43 . . . . . . . . . . . . . . . . . . . . . . . . . . . . . . Shots Hit Robots 6217 | 11 123 99 10 18 238 139 521 4 30 27 84 692 4 30 104 187 93 533 21 10 11 135 382 66 791 31 27 3 112 783 227 21 240 186 224 Core Hits 2482 | 3 41 38 . 8 89 54 261 2 19 22 46 292 2 10 37 79 37 224 8 2 2 40 141 11 297 8 8 . 39 333 100 4 76 68 81 Critical Hits 4 | . . 1 . . . . . . . . 1 . . 1 . . . . . . 1 . . . . . . . . . . . . . . Critical Kills 2 | . . 1 . . . . . . . . 1 . . . . . . . . . . . . . . . . . . . . . . . . Critical Parts Destroyed 1 | . . . . . . . . . . . . . . 1 . . . . . . . . . . . . . . . . . . . . . Melee Attacks 84 | . . 9 11 . 2 1 3 . . . 6 7 . 3 2 26 . . . . 11 . . . . 2 . . . . . . 1 . . Impact . | . . . . . . . . . . . . . . . . . . . . . . . . . . . . . . . . . . . . Slashing 53 | . . . . . 2 1 3 . . . 6 7 . 3 2 26 . . . . 3 . . . . . . . . . . . . . . Piercing 2 | . . . . . . . . . . . . . . . . . . . . . . . . . . 2 . . . . . . . . . Entropic 9 | . . . . . . . . . . . . . . . . . . . . . 8 . . . . . . . . . . . 1 . . Sneak Attacks 25 | . . 6 10 . . . . . . . . . . . . . . . . . 8 . . . . . . . . . . . 1 . . Combat Hostiles . | . . . . . . . . . . . . . . . . . . . . . . . . . . . . . . . . . . . . Follow-up Attacks 1 | . . . . . . . . . . . . . . . . . . . . . 1 . . . . . . . . . . . . . . Damage Inflicted 247552 | 138 1199 959 . 407 5527 3236 17894 115 914 817 2867 26465 118 842 3113 12076 3529 23100 568 639 1889 5705 15858 2999 34163 2608 945 . 5173 35050 9486 548 9542 7873 11190 Guns 226646 | 138 1199 959 . 407 5212 3048 16258 115 914 817 2314 23456 118 545 2835 7593 3529 20359 568 639 . 5705 15452 2999 32066 1656 945 . 4939 34343 9486 548 9287 7870 10327 Cannons 770 | . . . . . . . . . . . . . . . . . . . . . . . . . . . . . . . . . . . 770 Explosions 14516 | . . . . . 298 185 1636 . . . . 3009 . . . 2544 . 2741 . . . . 406 . 2097 566 . . 234 707 . . . . 93 Melee 5597 | . . . . . . . . . . . 553 . . 297 278 1939 . . . . 1889 . . . . 386 . . . . . . 255 . . Ramming 23 | . . . . . 17 3 . . . . . . . . . . . . . . . . . . . . . . . . . . . 3 . Kinetic 1459 | . 342 246 . . 272 . . . . . 318 102 . . . . . . . . . . . . . . . . . . . . . . 179 Thermal 233162 | 138 795 713 . 363 3296 2433 17019 115 914 817 1996 25250 118 411 2835 10137 3529 22301 568 639 . 5705 15858 2999 33775 1868 945 . 5173 34343 9486 548 9287 7870 10918 Explosive 3676 | . . . . . . . 868 . . . . 1040 . . . . . 588 . . . . . . 388 . . . . 699 . . . . 93 Electromagnetic 3635 | . 62 . . 44 1942 800 7 . . . . 73 . 134 . . . 211 . . . . . . . 354 . . . 8 . . . . . Impact . | . . . . . . . . . . . . . . . . . . . . . . . . . . . . . . . . . . . . Slashing 3169 | . . . . . . . . . . . 553 . . 297 278 1939 . . . . 102 . . . . . . . . . . . . . . Piercing 386 | . . . . . . . . . . . . . . . . . . . . . . . . . . 386 . . . . . . . . . Entropic 2042 | . . . . . . . . . . . . . . . . . . . . . 1787 . . . . . . . . . . . 255 . . Highest Corruption 4 | . . . . . . 1 3 . . . . 1 . . . . 1 2 . . . 1 1 . 2 . 1 . . 2 3 . 1 3 4 Average Corruption 1 | . . . . . . 1 1 . . . . 1 . . . . 1 1 . . . 1 1 . 1 . 1 . . 1 1 . 1 1 2 Corruption Purged 38 | . . . . . . . 3 . . . . 1 . . . . 1 7 . . . . 2 . 5 . 1 . . 4 4 . 1 4 5 Effects 105 | . . . . . . 7 52 . . . . 4 . . . . 1 7 . . . . 10 . 7 . . . . 4 6 . 1 2 4 Message Errors 31 | . . . . . . 4 15 . . . . 1 . . . . 1 3 . . . . 2 . 2 . . . . . 1 . 1 1 . Matter Fused 8 | . . . . . . . 7 . . . . . . . . . . . . . . . . . . . . . . . 1 . . . . Heat Flow Errors 4 | . . . . . . . 2 . . . . . . . . . . . . . . . . . 1 . . . . . . . . . 1 Energy Discharges 18 | . . . . . . 1 8 . . . . 2 . . . . . 1 . . . . 2 . . . . . . 1 1 . . . 2 Data Loss (minor) 10 | . . . . . . 1 6 . . . . . . . . . . 1 . . . . . . 1 . . . . . 1 . . . . Targeting Errors 26 | . . . . . . 1 12 . . . . 1 . . . . . . . . . . 6 . . . . . . 3 1 . . 1 1 Weapon Failures 8 | . . . . . . . 2 . . . . . . . . . . 2 . . . . . . 3 . . . . . 1 . . . . Overload Shots 472 | . . . . . . . 179 . . 29 8 35 . . 4 61 3 3 . 2 . 4 2 2 8 4 . . 2 2 2 6 1 2 113 Effects 37 | . . . . . . . 11 . . 4 . 5 . . . 3 . 1 . . . . . . . . . . 2 . . . . . 11 Energy Bleed 6 | . . . . . . . 3 . . 1 . . . . . . . . . . . . . . . . . . . . . . . . 2 Heat Surge 10 | . . . . . . . 4 . . . . 2 . . . 1 . . . . . . . . . . . . . . . . . . 3 Short Circuit 7 | . . . . . . . 4 . . . . . . . . 1 . 1 . . . . . . . . . . . . . . . . 1 Meltdown 14 | . . . . . . . . . . 3 . 3 . . . 1 . . . . . . . . . . . . 2 . . . . . 5 Overflow Damage 4251 | . . . . . 46 . 198 . . . 82 391 . 105 108 1387 . 550 . . 137 . 110 . 283 377 . . 134 138 . . 65 . 140 Projectiles 140 | . . . . . . . . . . . . . . . . . . . . . . . . . . . . . . . . . . . 140 Explosions 2570 | . . . . . 46 . 198 . . . . 391 . . . 708 . 550 . . . . 110 . 283 12 . . 134 138 . . . . . Melee 1541 | . . . . . . . . . . . 82 . . 105 108 679 . . . . 137 . . . . 365 . . . . . . 65 . . Knockbacks 2 | . . . . . . . . . . . . . . . . . . . . . . . . . . . . . . . . . . . 2 Impact . | . . . . . . . . . . . . . . . . . . . . . . . . . . . . . . . . . . . . Kinetic 2 | . . . . . . . . . . . . . . . . . . . . . . . . . . . . . . . . . . . 2 Secondary . | . . . . . . . . . . . . . . . . . . . . . . . . . . . . . . . . . . . . Self-Inflicted Damage 902 | . . . . . 8 28 195 . . . . 215 . . . 189 . 69 . . . . . . 62 27 . . 52 56 . . . 1 . Shots 20 | . . . . . . 1 6 . . . . 5 . . . 1 . 2 . . . . . . 2 1 . . 1 1 . . . . . Rammed 4 | . . . . . 2 1 . . . . . . . . . . . . . . . . . . . . . . . . . . . 1 . Targets Rammed 4 | . . . . . 2 1 . . . . . . . . . . . . . . . . . . . . . . . . . . . 1 . Kicked . | . . . . . . . . . . . . . . . . . . . . . . . . . . . . . . . . . . . . Crushed . | . . . . . . . . . . . . . . . . . . . . . . . . . . . . . . . . . . . . Highest Temperature 261 | 130 108 99 . 72 237 197 243 . . 168 113 116 . 1 48 224 48 159 . 3 . 126 54 84 199 186 84 . 198 198 156 168 149 132 261 Average Temperature 73 | 66 23 25 . 39 106 105 101 . . 71 52 35 . 1 24 136 25 38 . 3 . 61 23 40 63 76 35 . 84 83 45 98 36 34 68 Received Heat Transfer 5635 | . 132 138 . 18 324 81 789 . 27 84 114 1185 . 48 29 509 168 465 . 12 . 42 222 . 444 27 . . 96 420 135 . 18 18 90 Effects 3 | . . . . . 3 . . . . . . . . . . . . . . . . . . . . . . . . . . . . . . Interference 3 | . . . . . 3 . . . . . . . . . . . . . . . . . . . . . . . . . . . . . . Siege Activations . | . . . . . . . . . . . . . . . . . . . . . . . . . . . . . . . . . . . . Robots Corrupted . | . . . . . . . . . . . . . . . . . . . . . . . . . . . . . . . . . . . . Combat Hostiles . | . . . . . . . . . . . . . . . . . . . . . . . . . . . . . . . . . . . . Parts Fried 16 | . . . . . 10 2 . . . . . . . . . . . 3 . . . . . . . 1 . . . . . . . . . Impact Corruptions . | . . . . . . . . . . . . . . . . . . . . . . . . . . . . . . . . . . . . Robots Melted 46 | . . . . . . . 2 . 1 . . 5 . . . . . 7 . . . 1 4 . 8 2 . . 1 4 4 1 3 1 2 Combat Hostiles 43 | . . . . . . . 2 . 1 . . 3 . . . . . 7 . . . 1 4 . 8 1 . . 1 4 4 1 3 1 2 Parts Melted 602 | . 5 1 . 2 7 8 33 . 2 6 4 69 . 1 10 11 6 60 . 2 . 17 50 16 69 4 . . 18 99 31 2 23 21 25 Heat Transferred 205892 | 407 1998 1887 . 518 4801 3752 18921 148 1190 1112 2146 26901 148 481 3220 6611 3258 20419 481 396 . 4983 14001 2468 26660 1238 740 . 4188 27064 7391 310 7117 5895 5042 Parts Sabotaged 10 | . . . . . . . . . . . . 7 . . . . . . . . . . . . . . . . . . 3 . . . . Parts Stolen . | . . . . . . . . . . . . . . . . . . . . . . . . . . . . . . . . . . . . Parts Stripped . | . . . . . . . . . . . . . . . . . . . . . . . . . . . . . . . . . . . . Power Chain Reactions 6 | . . . . . 4 1 . . . . . . . . . . . . . . . . . . . 1 . . . . . . . . . Missiles Intercepted . | . . . . . . . . . . . . . . . . . . . . . . . . . . . . . . . . . . . . Alert | -11 -10 -10 -10 -9 -8 -8 -7 -7 -7 -7 -6 -6 -6 -6 -6 -6 -5 -5 -5 -5 -5 -4 -4 -4 -4 -4 -4 -4 -3 -3 -3 -3 -2 -1 -1 ------- Run | Scr Mat Min Exi Min Mat Sto Fac Low Low Dat Pro Fac Low Low Zio Dee Pro Fac Upp Upp War Pro Fac Was Fac Upp Upp Zhi Pro Res Arm Lab Res Acc Com Peak Influence 2673 | 10 544 189 . 183 766 563 1234 . . . . 1889 . . . . . 589 . . . . 1026 166 2484 . . . . 2673 1708 . 912 451 538 Average Influence 517 | 6 294 105 . 59 479 288 506 . . . . 816 . . . . . 124 . . . . 459 164 771 . . . . 1095 1159 . 435 298 316 Maximum Alert Level 5 | . 2 . . . 3 2 4 . . . . 5 . . . . . 2 . . . . 3 . 5 . . . . 5 5 . 3 2 2 Low Security (%) 31 | 100 12 100 . 100 4 34 26 . . . . 14 . . . . . 77 . . . . 20 100 16 . . . . 1 . . 24 21 3 Level 1 19 | . 68 . . . 25 41 16 . . . . 2 . . . . . 18 . . . . 31 . 11 . . . . 4 . . 25 52 86 Level 2 16 | . 18 . . . 53 24 22 . . . . 9 . . . . . 3 . . . . 14 . 27 . . . . 7 . . 28 25 9 Level 3 21 | . . . . . 17 . 29 . . . . 56 . . . . . . . . . . 32 . 19 . . . . 44 40 . 21 . . Level 4 7 | . . . . . . . 4 . . . . 11 . . . . . . . . . . . . 12 . . . . 29 50 . . . . Level 5 1 | . . . . . . . . . . . . 5 . . . . . . . . . . . . 6 . . . . 2 . . . . . High Security 1 | . . . . . . . . . . . . . . . . . . . . . . . . . 5 . . . . 10 8 . . . . Max Security . | . . . . . . . . . . . . . . . . . . . . . . . . . . . . . . . . . . . . Squads Dispatched 322 | . 6 1 . 1 16 17 48 . 1 . . 51 . . . . . 36 . . . . 17 . 44 . . . 1 48 6 . 12 12 5 Investigation 158 | . 6 1 . 1 11 17 29 . 1 . . 21 . . . . . 18 . . . . 8 . 21 . . . 1 14 2 . 2 4 1 Extermination 50 | . . . . . . . 7 . . . . 8 . . . . . 12 . . . . 3 . 6 . . . . 6 2 . . 3 3 Reinforcement 27 | . . . . . 2 . 2 . . . . 6 . . . . . 3 . . . . 2 . 2 . . . . 4 . . 3 2 1 Assault 53 | . . . . . . . 6 . . . . 10 . . . . . 2 . . . . 1 . 13 . . . . 19 2 . . . . Garrison 24 | . . . . . 3 . 4 . . . . 6 . . . . . 1 . . . . 3 . 2 . . . . 5 . . . . . Intercept 10 | . . . . . . . . . . . . . . . . . . . . . . . . . . . . . . . . . 7 3 . Construction Impeded 8 | . . . . . . . . . . . . 2 . . . . . 1 . . . . 1 . 1 . . . . 2 . . . 1 . Haulers Reinforced 10 | . . . . . . . 1 . . . . 4 . . . . . 1 . . . . . . . . . . . 1 . . 2 1 . Stealth | -11 -10 -10 -10 -9 -8 -8 -7 -7 -7 -7 -6 -6 -6 -6 -6 -6 -5 -5 -5 -5 -5 -4 -4 -4 -4 -4 -4 -4 -3 -3 -3 -3 -2 -1 -1 --------- Run | Scr Mat Min Exi Min Mat Sto Fac Low Low Dat Pro Fac Low Low Zio Dee Pro Fac Upp Upp War Pro Fac Was Fac Upp Upp Zhi Pro Res Arm Lab Res Acc Com Distress Signals 74 | . 1 3 . . 3 1 . . . . . 6 . . . . . 7 . . . . 2 . 4 . . . . 7 3 . 16 1 20 Communications Jammed . | . . . . . . . . . . . . . . . . . . . . . . . . . . . . . . . . . . . . Distress Signals . | . . . . . . . . . . . . . . . . . . . . . . . . . . . . . . . . . . . . Times Spotted 1427 | . 21 21 . 7 67 45 156 2 10 4 19 161 1 4 28 54 21 139 8 1 3 26 78 6 188 3 8 . 21 170 56 1 41 31 26 Peak Tracking Total 34 | . 4 5 . 2 7 5 8 2 5 3 5 7 1 3 8 34 7 6 3 1 5 9 5 3 14 1 6 . 4 10 8 1 6 5 5 Tactical Retreats 32 | . 1 3 . . 1 . 4 . . . . 8 . . 2 . . 2 . . . . 1 1 2 . . . . 3 1 . 1 1 1 Traps | -11 -10 -10 -10 -9 -8 -8 -7 -7 -7 -7 -6 -6 -6 -6 -6 -6 -5 -5 -5 -5 -5 -4 -4 -4 -4 -4 -4 -4 -3 -3 -3 -3 -2 -1 -1 ------- Run | Scr Mat Min Exi Min Mat Sto Fac Low Low Dat Pro Fac Low Low Zio Dee Pro Fac Upp Upp War Pro Fac Was Fac Upp Upp Zhi Pro Res Arm Lab Res Acc Com Traps Triggered 28 | . 2 . . . 1 . 6 . . . . 3 . . . . . . . . . . 3 . 7 . . . . 2 . . . . 4 Indirectly . | . . . . . . . . . . . . . . . . . . . . . . . . . . . . . . . . . . . . Trap Hack Attempts . | . . . . . . . . . . . . . . . . . . . . . . . . . . . . . . . . . . . . Triggered . | . . . . . . . . . . . . . . . . . . . . . . . . . . . . . . . . . . . . Disarmed 13 | . . . . . . . . . . . . . . . . . . 6 . . . . . . . . . . . 6 1 . . . . Reprogrammed 61 | . . . . . 6 10 . . . . . 10 . . . . . 14 . . . . 1 . 8 . . . . . . . . . 12 Reused 29 | . . . . . 3 . . . . . . 4 . . . . . . . . . . 1 . 14 . . . . . . . . . 7 Traps Extracted . | . . . . . . . . . . . . . . . . . . . . . . . . . . . . . . . . . . . . Installed 8 | . . . . . . . . . . . . . . . . . . . . . . . . . . 8 . . . . . . . . . Triggered 37 | . . . . . 3 . . . 1 . . 4 . . . . 1 . . . 11 . 1 . 14 . . . . . . . . . 2 Machines | -11 -10 -10 -10 -9 -8 -8 -7 -7 -7 -7 -6 -6 -6 -6 -6 -6 -5 -5 -5 -5 -5 -4 -4 -4 -4 -4 -4 -4 -3 -3 -3 -3 -2 -1 -1 ---------- Run | Scr Mat Min Exi Min Mat Sto Fac Low Low Dat Pro Fac Low Low Zio Dee Pro Fac Upp Upp War Pro Fac Was Fac Upp Upp Zhi Pro Res Arm Lab Res Acc Com Machines Disabled 216 | . 2 . . . 1 5 26 . 3 1 . 52 . . 3 2 1 47 . . 1 . 20 . 28 1 1 . 4 8 4 1 2 . 3 Max in Single Turn 10 | . 1 . . . . 1 4 . 1 1 . 10 . . 1 1 1 5 . . 1 . 2 . 4 1 1 . 4 2 1 1 1 . 1 Garrison Access 10 | . . . . . . . 2 . . . . . . . . . . 3 . . . . 1 . 2 . . . . 1 . . 1 . . Machines Sabotaged . | . . . . . . . . . . . . . . . . . . . . . . . . . . . . . . . . . . . . Garrisons Compromised . | . . . . . . . . . . . . . . . . . . . . . . . . . . . . . . . . . . . . Overloaded Fab Kills . | . . . . . . . . . . . . . . . . . . . . . . . . . . . . . . . . . . . . Fab Network Shutdowns 5 | . . . . . . . 1 . . . . 1 . . . . . . . . . . 1 . 1 . . . . . 1 . . . . Hacking | -11 -10 -10 -10 -9 -8 -8 -7 -7 -7 -7 -6 -6 -6 -6 -6 -6 -5 -5 -5 -5 -5 -4 -4 -4 -4 -4 -4 -4 -3 -3 -3 -3 -2 -1 -1 --------- Run | Scr Mat Min Exi Min Mat Sto Fac Low Low Dat Pro Fac Low Low Zio Dee Pro Fac Upp Upp War Pro Fac Was Fac Upp Upp Zhi Pro Res Arm Lab Res Acc Com Machines Accessed 256 | . 10 1 3 1 15 19 35 . 1 4 . 26 . . 1 . . 32 . 1 5 . 15 . 31 . 2 7 1 22 8 2 2 7 5 Terminals 157 | . 8 1 . . 10 16 17 . 1 . . 18 . . . . . 21 . 1 . . 11 . 19 . . . 1 16 5 . 1 6 5 Fabricators 26 | . . . . . . . 4 . . . . 3 . . . . . 6 . . . . 1 . 6 . . . . 2 3 . . 1 . Repair Stations 5 | . . . . . . . 3 . . . . . . . . . . 1 . . . . . . 1 . . . . . . . . . . Recycling Units 11 | . 2 . . . 2 2 5 . . . . . . . . . . . . . . . . . . . . . . . . . . . . Scanalyzers 17 | . . . . . 2 . 4 . . . . 3 . . . . . 1 . . . . 2 . 3 . . . . 1 . . 1 . . Garrison Access 15 | . . . . . 1 1 2 . . . . 2 . . . . . 3 . . . . 1 . 2 . . . . 3 . . . . . Total Hacks 1360 | . 44 6 18 1 106 90 113 . 7 27 . 245 . . 3 . . 217 . 4 12 . 89 . 107 . 2 28 7 91 42 20 7 44 30 Successful 903 | . 36 4 18 1 80 73 75 . 7 27 . 125 . . 3 . . 149 . 3 12 . 57 . 68 . 2 28 6 40 27 20 2 23 17 Failed 457 | . 8 2 . . 26 17 38 . . . . 120 . . . . . 68 . 1 . . 32 . 39 . . . 1 51 15 . 5 21 13 Catastrophic 74 | . . . . . 2 . 7 . . . . 20 . . . . . 14 . . . . 5 . 7 . . . . 9 3 . . 4 3 Database Lockouts . | . . . . . . . . . . . . . . . . . . . . . . . . . . . . . . . . . . . . Manual 923 | . 38 6 1 . 73 70 74 . 3 . . 203 . . 4 . . 155 . 3 3 . 66 . 79 . . . 1 64 22 4 7 26 21 Terminals 934 | . 38 6 . . 66 80 61 . 7 . . 207 . . . . . 160 . 4 . . 67 . 68 . . . 7 68 24 . 6 35 30 Fabricators 134 | . . . . . . . 16 . . . . 9 . . . . . 42 . . . . 7 . 24 . . . . 9 18 . . 9 . Repair Stations 11 | . . . . . . . 7 . . . . . . . . . . 2 . . . . . . 2 . . . . . . . . . . Recycling Units 28 | . 6 . . . 5 5 12 . . . . . . . . . . . . . . . . . . . . . . . . . . . . Scanalyzers 82 | . . . . . 30 . 8 . . . . 19 . . . . . 4 . . . . 7 . 9 . . . . 4 . . 1 . . Garrison Access 60 | . . . . . 5 5 9 . . . . 10 . . . . . 9 . . . . 8 . 4 . . . . 10 . . . . . Terminal Hacks 479 | . 23 4 18 1 29 51 19 . 7 27 . 68 . . 3 . . 71 . 1 12 . 27 . 19 . 2 28 6 11 7 20 1 13 11 Record 83 | . . . 17 . . . . . 5 11 . . . . . . . . . 1 5 . . . . . 1 17 6 . . 20 . . . Part Schematic 53 | . 2 . . . 3 8 2 . . 8 . 6 . . 3 . . 10 . . . . 3 . 2 . . 4 . . . . . 2 . Robot Schematic 12 | . 2 . . . 2 2 . . . 5 . . . . . . . 1 . . . . . . . . . . . . . . . . . Robot Analysis 99 | . 13 . . . 12 . 12 . 2 . . 27 . . . . . 7 . . . . 3 . 6 . . 3 . 5 . . . 5 4 Prototype ID Bank 108 | . 6 4 . . 9 28 . . . 3 . 21 . . . . . 24 . . 5 . 4 . . . . 4 . . . . . . . Open Door 13 | . . . . 1 . 4 . . . . . . . . . . . . . . 2 . . . . . 1 . . . 1 . . 3 1 Machine Index 3 | . . . . . . . . . . . . . . . . . . 1 . . . . 1 . 1 . . . . . . . . . . Alert Level 11 | . . . . . . . . . . . . 1 . . . . . 6 . . . . 3 . 1 . . . . . . . . . . Unreport Threat 48 | . . . . . 1 3 3 . . . . 6 . . . . . 9 . . . . 8 . 5 . . . . 4 5 . 1 3 . Locate Traps 6 | . . . . . . . . . . . . 1 . . . . . 1 . . . . 1 . 1 . . . . 1 . . . . 1 Disarm Traps 3 | . . . . . . . . . . . . . . . . . . 1 . . . . . . . . . . . 1 1 . . . . Reprogram Traps 20 | . . . . . 2 3 . . . . . 2 . . . . . 4 . . . . 3 . 2 . . . . . . . . . 4 Dispatch Records 1 | . . . . . . . . . . . . . . . . . . 1 . . . . . . . . . . . . . . . . . Transport Status 3 | . . . . . . 1 1 . . . . 1 . . . . . . . . . . . . . . . . . . . . . . . Recall Investigation 3 | . . . . . . . . . . . . . . . . . . 3 . . . . . . . . . . . . . . . . . Recall Extermination 1 | . . . . . . . . . . . . . . . . . . 1 . . . . . . . . . . . . . . . . . Recall Assault 1 | . . . . . . . . . . . . . . . . . . 1 . . . . . . . . . . . . . . . . . Hauler Manifests 8 | . . . . . . 2 1 . . . . 3 . . . . . 1 . . . . . . 1 . . . . . . . . . . Registered Prototypes 1 | . . . . . . . . . . . . . . . . . . . . . . . 1 . . . . . . . . . . . . EX-Prototype ID Bank 1 | . . . 1 . . . . . . . . . . . . . . . . . . . . . . . . . . . . . . . . Disengage Seal 1 | . . . . . . . . . . . . . . . . . . . . . . . . . . . . . . . . . . . 1 Fabricator Hacks 81 | . . . . . . . 10 . . . . 6 . . . . . 31 . . . . 5 . 12 . . . . 4 10 . . 3 . Network Status 4 | . . . . . . . . . . . . 2 . . . . . 2 . . . . . . . . . . . . . . . . . Load Schematic 35 | . . . . . . . 4 . . . . 2 . . . . . 12 . . . . 2 . 7 . . . . 2 4 . . 2 . Build 42 | . . . . . . . 6 . . . . 2 . . . . . 17 . . . . 3 . 5 . . . . 2 6 . . 1 . Repair Station Hacks 10 | . . . . . . . 6 . . . . . . . . . . 2 . . . . . . 2 . . . . . . . . . . Scan Component 5 | . . . . . . . 3 . . . . . . . . . . 1 . . . . . . 1 . . . . . . . . . . Repair 5 | . . . . . . . 3 . . . . . . . . . . 1 . . . . . . 1 . . . . . . . . . . Recycling Unit Hacks 12 | . 3 . . . 3 2 4 . . . . . . . . . . . . . . . . . . . . . . . . . . . . Report Inventory 8 | . . . . . 2 2 4 . . . . . . . . . . . . . . . . . . . . . . . . . . . . Retrieve Components 4 | . 3 . . . 1 . . . . . . . . . . . . . . . . . . . . . . . . . . . . . . Scanalyzer 64 | . . . . . 28 . 4 . . . . 16 . . . . . 4 . . . . 4 . 6 . . . . 2 . . . . . Insert Component 28 | . . . . . 13 . 2 . . . . 5 . . . . . 2 . . . . 3 . 2 . . . . 1 . . . . . Analyze 36 | . . . . . 15 . 2 . . . . 11 . . . . . 2 . . . . 1 . 4 . . . . 1 . . . . . Garrison Access Hacks 4 | . . . . . . . 2 . . . . . . . . . . 1 . . . . . . 1 . . . . . . . . . . Seal Access 4 | . . . . . . . 2 . . . . . . . . . . 1 . . . . . . 1 . . . . . . . . . . Unauthorized Hacks 253 | . 10 . . . 20 20 30 . . . . 35 . . . . . 40 . 2 . . 21 . 28 . . . . 23 10 . 1 7 6 Terminals 176 | . 9 . . . 13 15 16 . . . . 24 . . . . . 29 . 2 . . 14 . 19 . . . . 16 7 . . 6 6 Track 2 | . . . . . . . . . . . . . . . . . . 1 . . . . 1 . . . . . . . . . . . . Assimilate 11 | . . . . . 1 . 3 . . . . 3 . . . . . 3 . . . . . . 1 . . . . . . . . . . Botnet 142 | . 8 . . . 9 14 13 . . . . 18 . . . . . 19 . . . . 11 . 18 . . . . 16 5 . . 6 5 Detonate 9 | . . . . . . 1 . . . . . 2 . . . . . 3 . 1 . . 1 . . . . . . . 1 . . . . Disrupt 10 | . 1 . . . 3 . . . . . . 1 . . . . . 2 . 1 . . . . . . . . . . 1 . . . 1 Operators 2 | . . . . . . . . . . . . . . . . . . 1 . . . . 1 . . . . . . . . . . . . Fabricators 23 | . . . . . . . 4 . . . . 1 . . . . . 7 . . . . 2 . 3 . . . . 2 3 . . 1 . Report 2 | . . . . . . . . . . . . . . . . . . 1 . . . . 1 . . . . . . . . . . . . Prioritize 1 | . . . . . . . . . . . . . . . . . . . . . . . . . . . . . . . 1 . . . . Siphon 20 | . . . . . . . 4 . . . . 1 . . . . . 6 . . . . 1 . 3 . . . . 2 2 . . 1 . Repair Stations . | . . . . . . . . . . . . . . . . . . . . . . . . . . . . . . . . . . . . Recycling Units 9 | . 1 . . . 2 2 4 . . . . . . . . . . . . . . . . . . . . . . . . . . . . Reject 1 | . . . . . . . 1 . . . . . . . . . . . . . . . . . . . . . . . . . . . . Mask 1 | . . . . . . . 1 . . . . . . . . . . . . . . . . . . . . . . . . . . . . Tunnel 7 | . 1 . . . 2 2 2 . . . . . . . . . . . . . . . . . . . . . . . . . . . . Scanalyzers 15 | . . . . . 2 . 4 . . . . 3 . . . . . . . . . . 2 . 3 . . . . . . . 1 . . Extract 15 | . . . . . 2 . 4 . . . . 3 . . . . . . . . . . 2 . 3 . . . . . . . 1 . . Garrison Access 30 | . . . . . 3 3 2 . . . . 7 . . . . . 4 . . . . 3 . 3 . . . . 5 . . . . . Reprogram 30 | . . . . . 3 3 2 . . . . 7 . . . . . 4 . . . . 3 . 3 . . . . 5 . . . . . Data Cores Recovered 5 | . . . . . 1 1 1 . . . . . . . . . . 1 . . . . 1 . . . . . . . . . . . . Used 5 | . . . . . 1 1 1 . . . . . . . . . . 1 . . . . 1 . . . . . . . . . . . . Hacking Detections 200 | . 9 1 . . 12 18 30 . 1 . . 21 . . . . . 24 . 1 . . 13 . 27 . . . 1 21 8 . 1 7 5 Full Trace Events 140 | . 9 1 . . 10 17 22 . 1 . . 18 . . . . . 18 . . . . 6 . 17 . . . 1 13 2 . 1 3 1 Feedback Events 11 | . . . . . . 1 2 . . . . . . . . . . 3 . . . . 2 . 2 . . . . . 1 . . . . Corruption 8 | . . . . . . 1 2 . . . . . . . . . . 2 . . . . 1 . 1 . . . . . 1 . . . . Hackware Fried 3 | . . . . . . . . . . . . . . . . . . 1 . . . . 1 . 1 . . . . . . . . . . Feedback Blocked . | . . . . . . . . . . . . . . . . . . . . . . . . . . . . . . . . . . . . Robot Schematics Acquired 12 | . 2 . . . 2 2 . . . 5 . . . . . . . 1 . . . . . . . . . . . . . . . . . Robots Built 3 | . . . . . . . . . . . . . . . . . . . . . . . . . . . . . . . 3 . . . . Matter 1140 | . . . . . . . . . . . . . . . . . . . . . . . . . . . . . . . 1140 . . . . Time 466 | . . . . . . . . . . . . . . . . . . . . . . . . . . . . . . . 466 . . . . Total Robot Build Rating 21 | . . . . . . . . . . . . . . . . . . . . . . . . . . . . . . . 21 . . . . Part Schematics Acquired 128 | . 2 . . . 22 8 22 . . 8 . 19 . . 3 . . 12 . . . . 10 . 11 . . 4 . 1 . . 4 2 . Parts Built 36 | . . . . . . . 6 . . . . 3 . . . . . 16 . . . . 2 . 4 . . . . 2 2 . . 1 . Matter 7175 | . . . . . . . 1134 . . . . 372 . . . . . 3035 . . . . 526 . 719 . . . . 551 526 . . 312 . Time 3258 | . . . . . . . 670 . . . . 129 . . . . . 1369 . . . . 374 . 326 . . . . 130 186 . . 74 . Total Part Build Rating 236 | . . . . . . . 24 . . . . 17 . . . . . 112 . . . . 14 . 31 . . . . 15 14 . . 9 . Parts Repaired 5 | . . . . . . . 3 . . . . . . . . . . 1 . . . . . . 1 . . . . . . . . . . Time 258 | . . . . . . . 103 . . . . . . . . . . 112 . . . . . . 43 . . . . . . . . . . Parts Recycled . | . . . . . . . . . . . . . . . . . . . . . . . . . . . . . . . . . . . . Recycled Matter . | . . . . . . . . . . . . . . . . . . . . . . . . . . . . . . . . . . . . Retrieved Matter . | . . . . . . . . . . . . . . . . . . . . . . . . . . . . . . . . . . . . Retrieved Components 32 | . 22 . . . 10 . . . . . . . . . . . . . . . . . . . . . . . . . . . . . . Parts Scanalyzed 25 | . . . . . 12 . 2 . . . . 5 . . . . . 2 . . . . 2 . 1 . . . . 1 . . . . . Part Schematics Acquired 25 | . . . . . 12 . 2 . . . . 5 . . . . . 2 . . . . 1 . 2 . . . . 1 . . . . . Parts Damaged 3 | . . . . . 1 . . . . . . . . . . . . . . . . . . . 1 . . . . 1 . . . . . Bothacking | -11 -10 -10 -10 -9 -8 -8 -7 -7 -7 -7 -6 -6 -6 -6 -6 -6 -5 -5 -5 -5 -5 -4 -4 -4 -4 -4 -4 -4 -3 -3 -3 -3 -2 -1 -1 ------------ Run | Scr Mat Min Exi Min Mat Sto Fac Low Low Dat Pro Fac Low Low Zio Dee Pro Fac Upp Upp War Pro Fac Was Fac Upp Upp Zhi Pro Res Arm Lab Res Acc Com Used RIF Installer . | . . . . . . . . . . . . . . . . . . . . . . . . . . . . . . . . . . . . Robots Hacked 28 | . . 4 8 . . . . . . 1 . . . . 5 . . . . . 2 . . . . . . 3 . . . 1 1 . 3 Non-combat 8 | . . 3 3 . . . . . . . . . . . 2 . . . . . . . . . . . . . . . . . . . . Combat 20 | . . 1 5 . . . . . . 1 . . . . 3 . . . . . 2 . . . . . . 3 . . . 1 1 . 3 Robot Hacks Applied 31 | . . 6 9 . . . . . . 1 . . . . 5 . . . . . 2 . . . . . . 3 . . . 1 1 . 3 parse_system 28 | . . 3 9 . . . . . . 1 . . . . 5 . . . . . 2 . . . . . . 3 . . . 1 1 . 3 no_distress 3 | . . 3 . . . . . . . . . . . . . . . . . . . . . . . . . . . . . . . . . Relay Couplers Released 7 | . . . . . . . . . . . . . . . . . . . . . . . . . 3 . . . . 2 . . 2 . . Machine Destruction 3 | . . . . . . . . . . . . . . . . . . . . . . . . . 1 . . . . 2 . . . . . Programmers 4 | . . . . . . . . . . . . . . . . . . . . . . . . . 2 . . . . . . . 2 . . Robots Rewired 18 | . . . . . . . . . . . 1 . . . . . 2 . . . . 2 . . . 4 . . . . 9 . . . . Allies Hacked 11 | . . . . . . . 1 . . . . . . . . . . 1 . . . . 3 . . . . . . 3 3 . . . . Hacks Repelled 2 | . . . . . . . . . . . . . . . . . . . . . . . 2 . . . . . . . . . . . . Allies | -11 -10 -10 -10 -9 -8 -8 -7 -7 -7 -7 -6 -6 -6 -6 -6 -6 -5 -5 -5 -5 -5 -4 -4 -4 -4 -4 -4 -4 -3 -3 -3 -3 -2 -1 -1 -------- Run | Scr Mat Min Exi Min Mat Sto Fac Low Low Dat Pro Fac Low Low Zio Dee Pro Fac Upp Upp War Pro Fac Was Fac Upp Upp Zhi Pro Res Arm Lab Res Acc Com Total Allies 114 | . . 3 . 2 4 18 7 . . . 1 17 . . . . 2 11 . . . 2 7 . 6 4 . . . 10 20 . . . . Largest Group 13 | . . 3 3 5 7 11 4 3 3 3 1 5 4 4 2 . 2 6 . . . 2 7 . 3 4 2 . . 4 13 . . . . Highest-Rated Group 622 | . . 40 40 81 118 199 78 78 78 78 30 116 82 82 40 . 79 168 . . . 96 243 . 184 143 71 . . 188 622 . . . . Highest-Rated Ally 90 | . . 16 16 31 31 29 26 26 26 26 30 30 30 30 20 . 49 49 . . . 49 49 . 90 38 38 . . 56 58 . . . . Total Orders 321 | . . . . . 19 33 39 2 6 1 . 14 . . . . 12 94 8 6 2 . 9 . 41 . . . . 26 6 . . . 3 STAY 94 | . . . . . 7 10 12 . 2 . . 3 . . . . 2 28 4 2 . . 3 . 11 . . . . 7 2 . . . 1 GOTO 84 | . . . . . 3 8 12 1 2 1 . 4 . . . . 4 21 . 1 2 . 3 . 11 . . . . 7 3 . . . 1 FOLLOW 143 | . . . . . 9 15 15 1 2 . . 7 . . . . 6 45 4 3 . . 3 . 19 . . . . 12 1 . . . 1 Ally Attacks 703 | . . . . 3 54 190 50 . . . 4 73 . 6 5 . . 112 . . . 1 62 . 29 7 . . . 61 46 . . . . Total Damage 11935 | . . . . 40 650 2389 570 . . . 112 904 . 91 84 . . 1750 . . . . 1206 . 774 165 . . . 1953 1247 . . . . Kills 84 | . . . . 1 7 25 5 . . . . 5 . . 2 . . 12 . . . . 6 . 6 1 . . . 8 6 . . . . Allies Corrupted 13 | . . . . . . . . . . . . . . . . . . . . . 1 . 4 . 3 . 1 . . 1 3 . . . . Allies Melted 2 | . . . . . . 1 . . . . . . . . . . . . . . 1 . . . . . . . . . . . . . . Intel | -11 -10 -10 -10 -9 -8 -8 -7 -7 -7 -7 -6 -6 -6 -6 -6 -6 -5 -5 -5 -5 -5 -4 -4 -4 -4 -4 -4 -4 -3 -3 -3 -3 -2 -1 -1 ------- Run | Scr Mat Min Exi Min Mat Sto Fac Low Low Dat Pro Fac Low Low Zio Dee Pro Fac Upp Upp War Pro Fac Was Fac Upp Upp Zhi Pro Res Arm Lab Res Acc Com Robot Analysis Total 95 | . 13 . . . 12 . 12 . 2 . . 27 . . . . . 7 . . . . 3 . 6 . . 3 . 5 . . . 4 1 Derelict Logs Recovered 15 | . . . . 1 . . . 1 1 . 2 . . 1 1 . 1 . 2 . . 2 . . . 1 2 . . . . . . . . Drone Launches 56 | . . . . . . 16 . . . . . . . . . . 3 8 . . . . 6 . 5 . . . . 10 . . . . 8 Drone Recoveries . | . . . . . . . . . . . . . . . . . . . . . . . . . . . . . . . . . . . . Exploration | -11 -10 -10 -10 -9 -8 -8 -7 -7 -7 -7 -6 -6 -6 -6 -6 -6 -5 -5 -5 -5 -5 -4 -4 -4 -4 -4 -4 -4 -3 -3 -3 -3 -2 -1 -1 ------------- Run | Scr Mat Min Exi Min Mat Sto Fac Low Low Dat Pro Fac Low Low Zio Dee Pro Fac Upp Upp War Pro Fac Was Fac Upp Upp Zhi Pro Res Arm Lab Res Acc Com Turns Passed 54885 | 119 723 654 551 267 2133 1634 6130 948 526 310 973 4534 512 812 1174 2418 845 8546 564 634 1075 823 2412 160 4508 707 648 234 779 3446 1091 309 1354 1017 1315 Spaces Moved 33189 | 79 555 452 507 216 1508 1111 3599 667 327 159 574 2285 354 569 793 1426 613 4754 387 447 704 518 1292 94 2670 460 436 164 494 1914 642 207 839 625 748 Core 34 | 32 1 . . . . . . . . . . . . . . . . . . . . . . . . . . . . . . . . . 1 Treads . | . . . . . . . . . . . . . . . . . . . . . . . . . . . . . . . . . . . . Legs 2 | . . . . . . . . . . 1 . . . . . . . . . . 1 . . . . . . . . . . . . . . Wheels 33150 | 47 554 452 507 216 1508 1111 3599 667 327 158 574 2285 354 569 793 1424 613 4754 387 447 702 518 1292 94 2670 460 436 164 494 1914 642 207 839 625 747 Hover 3 | . . . . . . . . . . . . . . . . 2 . . . . 1 . . . . . . . . . . . . . . Flight . | . . . . . . . . . . . . . . . . . . . . . . . . . . . . . . . . . . . . Fastest Speed 50 | 50 80 100 100 110 110 120 120 140 140 130 140 130 140 130 120 120 120 120 140 140 130 140 130 130 130 140 140 130 140 130 130 130 130 130 130 Average Speed 132 | 89 92 100 101 110 113 127 137 140 140 138 147 141 140 133 129 121 120 131 140 140 139 140 135 135 139 140 140 138 140 137 130 130 130 130 137 Slowest Speed 950 | 150 200 100 110 110 120 130 140 140 140 180 150 150 140 140 130 200 120 140 140 140 160 140 140 140 140 140 140 140 140 140 130 130 130 130 950 Overloaded Moves 1 | . . . . . . . . . . . . . . . . . . . . . 1 . . . . . . . . . . . . . . Propulsion Burnouts . | . . . . . . . . . . . . . . . . . . . . . . . . . . . . . . . . . . . . Robots Hopped . | . . . . . . . . . . . . . . . . . . . . . . . . . . . . . . . . . . . . Cave-ins Triggered 2 | . . . . . . . . . . . . . . . . . . . . . . . . . . 1 . . . . 1 . . . . Teleports 2 | . . . . . . . . . . . . . . . . . . . . . . . . . . . . 1 . . . 1 . . . Exploration Rate (%) 71 | 5 93 78 90 82 95 91 84 82 61 79 78 61 72 80 81 86 81 86 85 73 77 83 57 76 75 79 74 62 71 56 45 98 37 16 29 Regions Visited 35 Branch Regions 24 Pre-discovered Areas 18 | . 1 1 . 1 2 2 2 1 . 1 . . . . . . . . 1 . . 1 . . . . 1 3 1 . . . . . . Known Exits Taken 33 | 1 1 1 1 1 1 1 1 1 1 1 1 1 1 1 1 1 1 1 1 1 1 1 . . 1 1 1 1 1 1 1 1 1 1 . Unknown Exits Taken . | . . . . . . . . . . . . . . . . . . . . . . . . . . . . . . . . . . . . Scrap Searched 35 | . . . . . . . . 3 . . 1 . 3 2 5 . 4 . 2 4 . 1 . . . 5 2 . 3 . . . . . . Spaces Dug 150 | . . . . . 2 1 4 . . . . 14 . . . . . 61 . . 17 . 14 . 13 1 4 . . 6 8 . 2 1 2 Terrain Destroyed 2644 | . . . . . 25 26 114 1 . . 11 451 2 11 6 43 17 608 22 9 19 38 104 3 367 33 16 . 40 317 96 7 124 66 68 Melee 14 | . . . . . 2 1 3 . . . . 7 . . . . . . . . 1 . . . . . . . . . . . . . . Projectile 1462 | . . . . . 7 17 20 1 . . 11 143 2 11 6 32 17 157 22 9 18 38 85 3 211 6 16 . 26 272 96 7 95 66 68 AOE 1168 | . . . . . 16 8 91 . . . . 301 . . . 11 . 451 . . . . 19 . 156 27 . . 14 45 . . 29 . . Actions | -11 -10 -10 -10 -9 -8 -8 -7 -7 -7 -7 -6 -6 -6 -6 -6 -6 -5 -5 -5 -5 -5 -4 -4 -4 -4 -4 -4 -4 -3 -3 -3 -3 -2 -1 -1 --------- Run | Scr Mat Min Exi Min Mat Sto Fac Low Low Dat Pro Fac Low Low Zio Dee Pro Fac Upp Upp War Pro Fac Was Fac Upp Upp Zhi Pro Res Arm Lab Res Acc Com Total 40878 | 111 670 561 531 237 1766 1214 4437 676 370 234 640 3081 368 597 853 1968 667 6774 397 449 775 571 1787 106 3131 509 460 170 546 2460 799 238 1017 763 945 Wait 4158 | 14 36 44 9 9 64 9 504 . 22 10 1 388 4 11 . 302 3 1724 . . 17 4 335 2 167 12 1 . 2 246 17 . 49 78 74 Move 33153 | 78 554 451 506 215 1507 1110 3598 666 326 158 573 2284 353 568 792 1425 612 4753 386 446 703 517 1292 93 2669 458 435 163 493 1913 641 206 838 624 747 Hop . | . . . . . . . . . . . . . . . . . . . . . . . . . . . . . . . . . . . . Pick Up 64 | . 2 1 . 1 3 . 6 . 1 2 . 3 . 1 4 7 . 7 . . 1 3 1 . 4 . . . 4 6 2 . . . 5 Fast Attach 242 | 6 12 2 1 2 18 8 12 . 1 12 4 26 . . 3 27 1 11 . . 12 . 8 1 4 . 2 2 . 16 5 13 12 2 19 Attach 28 | . . . . . 8 . 1 . . 2 . 5 . . . 3 . 1 . . . 1 1 . 1 . 1 . 2 1 . . . . 1 Detach 47 | . . . 1 . 11 . 1 . 1 1 2 5 . . . 13 . 2 . . 1 . 1 . 1 . . 1 . 2 . 1 2 . 1 Swap 123 | . 2 2 1 . 11 4 22 . . 3 . 9 . 2 3 4 1 13 . . 4 . 6 . 5 3 . 1 1 8 1 3 5 1 8 Drop 255 | . 5 1 2 2 19 7 25 . 1 13 3 18 1 . 7 34 1 22 . . 13 2 11 . 5 . 1 . 2 22 5 9 10 3 11 Fire 1499 | 13 44 40 . 4 71 43 149 2 12 8 21 180 1 7 34 39 19 151 7 3 10 24 86 10 163 5 8 3 19 140 52 6 43 35 47 Melee 82 | . . 9 11 . 2 1 3 . . . 6 7 . 3 2 26 . . . . 9 . . . . 2 . . . . . . 1 . . Ram 4 | . . . . . 2 1 . . . . . . . . . . . . . . . . . . . . . . . . . . . 1 . Kick . | . . . . . . . . . . . . . . . . . . . . . . . . . . . . . . . . . . . . Crush . | . . . . . . . . . . . . . . . . . . . . . . . . . . . . . . . . . . . . Escape Stasis 49 | . . . . . . . 24 . . . . . . . . . . . . . . . . . 24 1 . . . . . . . . . Rewire 75 | . . . . . . 2 1 . . . 1 . . . . . 15 . . . . 10 1 . . 12 . . . 2 31 . . . . Trap 8 | . . . . . . . . . . . . . . . . . . . . . . . . . . 8 . . . . . . . . . Miscellaneous 1091 | . 15 11 . 4 50 29 91 8 6 25 29 156 9 5 8 88 15 90 4 . 5 10 45 . 88 8 12 . 23 104 45 . 57 19 32 Route ------- -11/Scrapyard -10/Materials (discovered 4 exits: *Mat x2 / *Min x2) -10/Mines (discovered 3 exits: *Mat x2 / *Exi) -10/Exiles (discovered 2 exits: *Min x2) -9/Mines (discovered 2 exits: *Mat x2) -8/Materials (discovered 4 exits: *Fac x3 / *Sto) -8/Storage (discovered 2 exits: *Fac / Rec) -7/Factory (discovered 6 exits: *Fac x4 / *Low x2) -7/Lower Caves -7/Lower Caves (discovered 2 exits: Fac / *Dat) -7/Data Miner -6/Proximity Caves -6/Factory (discovered 3 exits: *Fac / *Low x2) -6/Lower Caves -6/Lower Caves (discovered 2 exits: Fac / *Zio) -6/Zion (discovered 2 exits: *Dee / *Pro) -6/Deep Caves -5/Proximity Caves -5/Factory (discovered 8 exits: *Fac x4 / *Upp x2 / *Ext x2) -5/Upper Caves (discovered 2 exits: *Upp / *War) -5/Upper Caves (discovered 2 exits: *Fac / *War) -5/Warlord -4/Proximity Caves -4/Factory (discovered 3 exits: *Res / *Upp x2) -4/Waste -4/Factory (discovered 6 exits: *Res x4 / *Upp x2) -4/Upper Caves -4/Upper Caves (discovered 2 exits: *Res / *Zhi) -4/Zhirov -3/Proximity Caves -3/Research (discovered 6 exits: *Res x3 / *Arm / Tes x2) -3/Armory (discovered 3 exits: Res x2 / *Lab) -3/Lab -2/Research (discovered 3 exits: *Acc x2 / Qua) -1/Access -1/Command (discovered 2 exits: *Sur x2) 0b11 Command History --------- Turn | Location | Event 7 | -11/Scrapyard | Identified exit to Materials 7 | -11/Scrapyard | Discovered exit to Materials (range 16) 86 | -11/Scrapyard | Upgraded with Utility slot (x1) 86 | -11/Scrapyard | Upgraded with Weapon slot (x3) 120 | -11/Scrapyard | Entered Materials 305 | -10/Materials | Build established: Hacker-Gunner 318 | -10/Materials | Reached level 2 330 | -10/Materials | Identified exit to Mines 330 | -10/Materials | Discovered exit to Mines (range 16) 462 | -10/Materials | Identified exit to Materials 462 | -10/Materials | Discovered exit to Materials (range 13) 675 | -10/Materials | Upgraded with Utility slot (x2) 705 | -10/Materials | Discovered exit to Materials (range 12) 815 | -10/Materials | Discovered exit to Mines (range 15) 843 | -10/Materials | Entered Mines 845 | -10/Mines | Reached level 3 855 | -10/Mines | Met a Derelict bent on vengeance 904 | -10/Mines | Assembled infested the area 918 | -10/Mines | Found a damaged Exp. Sensor Array with a note attached 921 | -10/Mines | Found Prototype Device 921 | -10/Mines | Identified Exp. Sensor Array 980 | -10/Mines | Learned location of Storage (-8) 1140 | -10/Mines | Discovered exit to Materials (range 12) 1397 | -10/Mines | Discovered exit to Materials (range 3) 1401 | -10/Mines | Assisted by bots powering up and referring to "LRC-V3" 1486 | -10/Mines | Deemed a non-threat by the Exiles lab entrance 1486 | -10/Mines | Identified exit to Exiles 1486 | -10/Mines | Discovered exit to Exiles (range 5) 1497 | -10/Mines | Entered Exiles 1497 | -10/Exiles | Accompanied by 3 allies 1510 | -10/Exiles | Identified exit to Mines 1510 | -10/Exiles | Discovered exit to Mines (range 15) 1522 | -10/Exiles | Met 8R-AWN 1546 | -10/Exiles | Met EX-HEX 1596 | -10/Exiles | Met EX-BIN 1633 | -10/Exiles | Met EX-DEC 1674 | -10/Exiles | Visited The Gauntlet 1828 | -10/Exiles | Build established: Hacker-Mutant 1899 | -10/Exiles | Aligned with FarCom system 1900 | -10/Exiles | Given EX-Vault access code 1923 | -10/Exiles | Opened EX-Vault 1934 | -10/Exiles | Found AWS/Thermal 1957 | -10/Exiles | Warned to stay clear of 0b10 Research branches 2031 | -10/Exiles | Discovered exit to Mines (range 10) 2048 | -10/Exiles | Left Exiles lab with AWS/Thermal 2048 | -10/Exiles | Entered Mines 2048 | -9/Mines | Accompanied by 3 allies 2050 | -9/Mines | Reached level 4 2052 | -9/Mines | A weapon hastily lodged in a ceiling crevice suddenly fell to the ground 2113 | -9/Mines | Joined a pair of Derelicts in attacking an 0b10 outpost 2158 | -9/Mines | Met a Derelict shopkeep closing up shop 2238 | -9/Mines | Identified exit to Materials 2238 | -9/Mines | Discovered exit to Materials (range 11) 2255 | -9/Mines | Upgraded with Weapon slot (x1) 2292 | -9/Mines | Discovered exit to Materials (range 14) 2315 | -9/Mines | Entered Materials 2315 | -8/Materials | Accompanied by 5 allies 2317 | -8/Materials | Reached level 5 2317 | -8/Materials | Reached level 6 2320 | -8/Materials | Led the pair of lost Derelicts to an unsafe place 2333 | -8/Materials | Build established: Hacker-Skirmisher 2378 | -8/Materials | Reached level 7 2402 | -8/Materials | Identified exit to Factory 2402 | -8/Materials | Discovered exit to Factory (range 13) 2472 | -8/Materials | Reached level 8 2476 | -8/Materials | Garrison activated, responded to threat 2499 | -8/Materials | Destroyed 7 combat bots 2533 | -8/Materials | Upgraded with Utility slot (x1) 2712 | -8/Materials | Discovered exit to Factory (range 10) 2721 | -8/Materials | Reached level 9 2984 | -8/Materials | Reached level 10 3158 | -8/Materials | Upgraded with Utility slot (x1) 3310 | -8/Materials | Reached level 11 3682 | -8/Materials | Upgraded with Power slot (x1) 3920 | -8/Materials | Discovered exit to Factory (range 16) 4173 | -8/Materials | Identified exit to Storage 4173 | -8/Materials | Discovered exit to Storage (range 17) 4265 | -8/Materials | Reached level 12 4448 | -8/Materials | Entered Storage 4448 | -8/Storage | Accompanied by 1 ally 4458 | -8/Storage | Assisted by bots powering up and referring to "LRC-V3" 4559 | -8/Storage | Reached level 13 4742 | -8/Storage | Build established: Commander-Skirmisher 4767 | -8/Storage | Upgraded with Weapon slot (x1) 5186 | -8/Storage | Upgraded with Weapon slot (x1) 5382 | -8/Storage | Reached level 14 5478 | -8/Storage | Discovered exit to Factory (range 19) 5660 | -8/Storage | Identified exit to Recycling 5660 | -8/Storage | Discovered exit to Recycling (range 18) 5686 | -8/Storage | Build established: Hacker-Executioner 5966 | -8/Storage | Upgraded with Utility slot (x1) 6082 | -8/Storage | Entered Factory 6082 | -7/Factory | Accompanied by 8 allies 6084 | -7/Factory | Reached level 15 6253 | -7/Factory | Build established: Pyromaniac-Executioner 6842 | -7/Factory | Build established: Hacker-Executioner 6971 | -7/Factory | Upgraded with Utility slot (x1) 7102 | -7/Factory | Fabricated Cld. Pulse Rifle? 7164 | -7/Factory | Fabricated Cld. Pulse Rifle? 7187 | -7/Factory | Reached level 16 7192 | -7/Factory | Fabricated Cld. Pulse Rifle? 7361 | -7/Factory | Fabricated Cld. Pulse Rifle? 7479 | -7/Factory | Identified exit to Lower Caves 7479 | -7/Factory | Discovered exit to Lower Caves (range 15) 7610 | -7/Factory | Identified exit to Factory 7610 | -7/Factory | Discovered exit to Factory (range 10) 8267 | -7/Factory | Fabricated Cld. Pulse Rifle (x1) 8369 | -7/Factory | Local fabrication network quarantined 8413 | -7/Factory | Fabricated Cld. Pulse Rifle (x1) 8575 | -7/Factory | Build established: Machinist-Executioner 8731 | -7/Factory | Reached level 17 8953 | -7/Factory | Discovered exit to Factory (range 20) 9100 | -7/Factory | Garrison activated, responded to threat 9312 | -7/Factory | First assault squad dispatched 9544 | -7/Factory | Destroyed 8 combat bots 9867 | -7/Factory | Repaired Broken Cld. Pulse Rifle 9884 | -7/Factory | Reached level 18 9985 | -7/Factory | Discovered exit to Factory (range 17) 10111 | -7/Factory | Discovered exit to Lower Caves (range 16) 10392 | -7/Factory | Repaired Broken Cld. Pulse Rifle 10843 | -7/Factory | Discovered exit to Factory (range 20) 10907 | -7/Factory | Garrison activated, responded to threat 10933 | -7/Factory | Destroyed 8 combat bots 11081 | -7/Factory | Repaired Broken Energy Filter 12212 | -7/Factory | Entered Lower Caves 12212 | -7/Lower Caves | Accompanied by 3 allies 12316 | -7/Lower Caves | Learned location of Zion (-6) 12668 | -7/Lower Caves | Identified exit to Lower Caves 12668 | -7/Lower Caves | Discovered exit to Lower Caves (range 17) 13160 | -7/Lower Caves | Entered another Lower Caves area 13160 | -7/Lower Caves | Accompanied by 3 allies 13165 | -7/Lower Caves | Discovered exit to Factory (range 13) 13297 | -7/Lower Caves | Encountered a Warlord checkpoint 13317 | -7/Lower Caves | Identified exit to Data Miner 13593 | -7/Lower Caves | Attracted the attention of an 0b10 base 13640 | -7/Lower Caves | Destroyed 7 combat bots 13644 | -7/Lower Caves | Learned location of 1 exit from Proximity Caves 13644 | -7/Lower Caves | Learned location of 1 exit from Research 13644 | -7/Lower Caves | Learned Research security intel 13644 | -7/Lower Caves | Learned Extension terminal intel 13686 | -7/Lower Caves | Entered Data Miner 13686 | -7/Data Miner | Accompanied by 3 allies 13686 | -7/Data Miner | Identified exit to Proximity Caves 13686 | -7/Data Miner | Discovered exit to Proximity Caves (range 6) 13713 | -7/Data Miner | Met Data Miner 13738 | -7/Data Miner | Learned location of Section 7 (-2) 13738 | -7/Data Miner | Acquired the access code to Warlord's prototype stash 13762 | -7/Data Miner | Received God Mode back door access code from Data Miner 13785 | -7/Data Miner | Destroyed Data Miner 13785 | -7/Data Miner | Data Conduit disabled 13790 | -7/Data Miner | Found Quantum Router 13831 | -7/Data Miner | Core integrity fell below 50% 13906 | -7/Data Miner | Found Prototype Device 13906 | -7/Data Miner | Identified Exp. Thermal Shield 13936 | -7/Data Miner | Upgraded with Utility slot (x1) 13938 | -7/Data Miner | Found Ghost Barrier 13996 | -7/Data Miner | Entered Proximity Caves 13998 | -6/Proximity Caves | Reached level 19 14181 | -6/Proximity Caves | Attracted the attention of an 0b10 outpost 14488 | -6/Proximity Caves | Build established: Wizard-Executioner 14845 | -6/Proximity Caves | Learned Factory stockpile data 14858 | -6/Proximity Caves | Learned Factory stockpile data 14947 | -6/Proximity Caves | Attracted the attention of an 0b10 checkpoint 14969 | -6/Proximity Caves | Entered Factory 14971 | -6/Factory | Reached level 20 15742 | -6/Factory | Fabricated Overload Amplifier (x2) 15769 | -6/Factory | Local fabrication network quarantined 15831 | -6/Factory | Fabricated Exp. Terrain Scanner (x1) 16133 | -6/Factory | Destroyed 13 combat bots 16369 | -6/Factory | First assault squad dispatched 16487 | -6/Factory | Identified exit to Lower Caves 16487 | -6/Factory | Discovered exit to Lower Caves (range 27) 16510 | -6/Factory | Reached level 21 17497 | -6/Factory | Garrison activated, responded to threat 17690 | -6/Factory | Discovered exit to Lower Caves (range 13) 18059 | -6/Factory | Identified exit to Factory 18059 | -6/Factory | Discovered exit to Factory (range 21) 18637 | -6/Factory | Reached level 22 18666 | -6/Factory | Destroyed 7 combat bots 18979 | -6/Factory | Destroyed 11 combat bots 19160 | -6/Factory | Garrison activated, responded to threat 19416 | -6/Factory | Spotted B-75 Beast 19417 | -6/Factory | Destroyed B-75 Beast 19503 | -6/Factory | Entered Lower Caves 19503 | -6/Lower Caves | Accompanied by 4 allies 19585 | -6/Lower Caves | Encountered a Warlord checkpoint 19928 | -6/Lower Caves | Identified exit to Lower Caves 19928 | -6/Lower Caves | Discovered exit to Lower Caves (range 28) 20015 | -6/Lower Caves | Entered another Lower Caves area 20015 | -6/Lower Caves | Accompanied by 4 allies 20016 | -6/Lower Caves | Encountered a Warlord checkpoint 20020 | -6/Lower Caves | Discovered exit to Factory (range 26) 20261 | -6/Lower Caves | Learned 8 Factory zone layouts 20425 | -6/Lower Caves | Identified exit to Zion 20425 | -6/Lower Caves | Discovered exit to Zion (range 28) 20827 | -6/Lower Caves | Entered Zion 20827 | -6/Zion | Accompanied by 2 allies 20854 | -6/Zion | Identified exit to Proximity Caves 20854 | -6/Zion | Discovered exit to Proximity Caves (range 25) 20919 | -6/Zion | Learned Factory emergency access door positions 21077 | -6/Zion | Learned Factory garrison access intel 21216 | -6/Zion | Received a visual enhancement algorithm 21450 | -6/Zion | Identified exit to Deep Caves 21450 | -6/Zion | Discovered exit to Deep Caves (range 14) 21690 | -6/Zion | Build established: Wizard-Mutant 21706 | -6/Zion | Rebuked by Imprinter 21729 | -6/Zion | Attempted to imprint without authorization 21729 | -6/Zion | Attacked by Zionites 21882 | -6/Zion | Destroyed Imprinter 21886 | -6/Zion | Extracted access codes from Imprinter's data core 21979 | -6/Zion | Opened final containment barrier to the Deep Caves 21999 | -6/Zion | Saw the warning signs outside the Deep Caves entrance 22001 | -6/Zion | Entered Deep Caves 22042 | -6/Deep Caves | Build established: Wizard-Executioner 22247 | -6/Deep Caves | Found Prototype Protection 22247 | -6/Deep Caves | Identified Zio. Weapon Casing 22399 | -6/Deep Caves | Z-Facility disabled 22412 | -6/Deep Caves | Core integrity fell below 50% 22556 | -6/Deep Caves | Identified exit to Proximity Caves 22556 | -6/Deep Caves | Discovered exit to Proximity Caves (range 29) 22710 | -6/Deep Caves | Spotted as-77253 22777 | -6/Deep Caves | Destroyed as-77253 22785 | -6/Deep Caves | Found Broken GOLEM Unit 22819 | -6/Deep Caves | Found GOLEM Unit 23177 | -6/Deep Caves | Upgraded with Utility slot (x1) 23307 | -6/Deep Caves | Exposed GOLEM chamber 23331 | -6/Deep Caves | Found GOLEM Unit 23334 | -6/Deep Caves | Triggered Deep Caves wall 23388 | -6/Deep Caves | Spotted AS-63008 23392 | -6/Deep Caves | Spotted AS-57855 23397 | -6/Deep Caves | Destroyed AS-63008 23401 | -6/Deep Caves | Destroyed AS-57855 23425 | -6/Deep Caves | Destroyed 38 combat bots 23677 | -6/Deep Caves | Found Zio. Weapon Casing 23717 | -6/Deep Caves | Build established: Wizard-Mutant 24017 | -6/Deep Caves | Build established: Wizard-Executioner 24316 | -6/Deep Caves | Found Zio. Weapon Casing 24419 | -6/Deep Caves | Entered Proximity Caves 24445 | -5/Proximity Caves | Learned location of 1 exit from Factory 24463 | -5/Proximity Caves | Reached level 23 24501 | -5/Proximity Caves | Destroyed 7 combat bots 24741 | -5/Proximity Caves | Attracted the attention of an 0b10 checkpoint 24771 | -5/Proximity Caves | Spotted B-75 Beast 24772 | -5/Proximity Caves | Destroyed B-75 Beast 24912 | -5/Proximity Caves | Discovered exit to Factory (range 26) 25264 | -5/Proximity Caves | Entered Factory 25264 | -5/Factory | Accompanied by 3 allies 25265 | -5/Factory | Identified exit to Extension 25269 | -5/Factory | Loaded intel: 3 garrison access locations 25291 | -5/Factory | Identified exit to Factory 25291 | -5/Factory | Discovered exit to Factory (range 24) 25498 | -5/Factory | Ghost Barrier fried by hacking feedback 25647 | -5/Factory | Fabricated Imp. Weapon Cycler? 25745 | -5/Factory | Fabricated Prc. Energy Filter (x1) 26162 | -5/Factory | Reached level 24 26222 | -5/Factory | Build established: Hacker-Executioner 26236 | -5/Factory | Upgraded with Utility slot (x1) 26306 | -5/Factory | Identified exit to Upper Caves 26306 | -5/Factory | Discovered exit to Upper Caves (range 11) 26319 | -5/Factory | Discovered exit to Factory (range 30) 26673 | -5/Factory | Spotted B-75 Beast 26678 | -5/Factory | Destroyed B-75 Beast 26777 | -5/Factory | Fabricated Cld. Phase Gun (x1) 26880 | -5/Factory | Fabricated Cld. Phase Gun (x1) 26973 | -5/Factory | Fabricated Cld. Phase Gun? 27080 | -5/Factory | Repaired Broken Prc. Energy Filter 27273 | -5/Factory | Garrison activated, responded to threat 27656 | -5/Factory | Destroyed 8 combat bots 28550 | -5/Factory | Fabricated Adv. Weapon Cycler (x2) 28898 | -5/Factory | Fabricated Cld. Phase Gun (x1) 28991 | -5/Factory | Fabricated Cld. Phase Gun (x1) 29279 | -5/Factory | Build established: Machinist-Executioner 29392 | -5/Factory | Discovered exit to Factory (range 23) 29401 | -5/Factory | Discovered exit to Upper Caves (range 26) 29416 | -5/Factory | Discovered exit to Extension (range 27) 29715 | -5/Factory | Reached level 25 29981 | -5/Factory | Build established: Machinist-Mutant 30005 | -5/Factory | Fabricated Cld. Phase Gun (x1) 30463 | -5/Factory | Build established: Machinist-Executioner 31029 | -5/Factory | Discovered exit to Factory (range 29) 31231 | -5/Factory | Fabricated Cld. Phase Gun (x1) 31376 | -5/Factory | Fabricated Imp. System Restoration Module (x1) 31935 | -5/Factory | Fabricated Imp. Overload Amplifier (x2) 32341 | -5/Factory | Fabricated Cld. Fission Core? 33386 | -5/Factory | Build established: Machinist-Mutant 33810 | -5/Factory | Entered Upper Caves 33810 | -5/Upper Caves | Accompanied by 3 allies 34184 | -5/Upper Caves | Build established: Machinist-Executioner 34221 | -5/Upper Caves | Identified exit to Upper Caves 34221 | -5/Upper Caves | Discovered exit to Upper Caves (range 30) 34291 | -5/Upper Caves | A Derelict revealed a hidden shortcut to "reach the base" 34374 | -5/Upper Caves | Entered another Upper Caves area 34374 | -5/Upper Caves | Accompanied by 1 ally 34394 | -5/Upper Caves | Discovered exit to Factory (range 30) 34828 | -5/Upper Caves | Spotted B-75 Beast 34849 | -5/Upper Caves | Destroyed B-75 Beast 34914 | -5/Upper Caves | Identified exit to Warlord 34914 | -5/Upper Caves | Discovered exit to Warlord (range 9) 35008 | -5/Upper Caves | Entered Warlord 35008 | -5/Warlord | Accompanied by 1 ally 35023 | -5/Warlord | Identified exit to Proximity Caves 35023 | -5/Warlord | Discovered exit to Proximity Caves (range 26) 35312 | -5/Warlord | Received a Watcher feed algorithm from an ecstatic Tinkerer 35437 | -5/Warlord | Met Warlord 35461 | -5/Warlord | Build established: Machinist-Mutant 35462 | -5/Warlord | Warlord's base attacked by MAIN.C 35560 | -5/Warlord | Found Prototype Energy Gun 35560 | -5/Warlord | Identified Vortex Rail 35563 | -5/Warlord | Found Prototype Piercing Weapon 35563 | -5/Warlord | Identified Vortex Lance 35680 | -5/Warlord | Opened Warlord's prototype stash 35685 | -5/Warlord | Found Prototype Reactor 35685 | -5/Warlord | Identified Vortex Chain Reactor 35742 | -5/Warlord | Found Prototype Device 35742 | -5/Warlord | Identified Exp. Cloaking Device 35768 | -5/Warlord | Found Prototype Processor 35768 | -5/Warlord | Identified Exp. Target Analyzer 35773 | -5/Warlord | Found System Mapper 35812 | -5/Warlord | Warlord forces counterattacked 35941 | -5/Warlord | Destroyed TW-Z7R(K) 35967 | -5/Warlord | Destroyed BK-AWA(K) 36039 | -5/Warlord | Build established: Wizard-Mutant 36049 | -5/Warlord | Opened side exit 36059 | -5/Warlord | Spotted Executioner 36083 | -5/Warlord | Entered Proximity Caves 36085 | -4/Proximity Caves | Reached level 26 36088 | -4/Proximity Caves | Upgraded with Weapon slot (x1) 36161 | -4/Proximity Caves | Learned Research security intel 36267 | -4/Proximity Caves | Spotted B-86 Titan 36275 | -4/Proximity Caves | Destroyed B-86 Titan 36375 | -4/Proximity Caves | Build established: Wizard-Executioner 36459 | -4/Proximity Caves | Discovered exit to Factory (range 30) 36713 | -4/Proximity Caves | Attracted the attention of an 0b10 outpost 36762 | -4/Proximity Caves | Destroyed 9 combat bots 36906 | -4/Proximity Caves | Entered Factory 36906 | -4/Factory | Accompanied by 2 allies 36968 | -4/Factory | Garrison activated, responded to threat 37110 | -4/Factory | Reached level 27 37344 | -4/Factory | Identified exit to Upper Caves 37344 | -4/Factory | Discovered exit to Upper Caves (range 24) 37902 | -4/Factory | Fabricated Particle Accelerator (x1) 38103 | -4/Factory | Fabricated Cld. Phase Gun (x1) 38184 | -4/Factory | Destroyed 9 combat bots 38212 | -4/Factory | Local fabrication network quarantined 38661 | -4/Factory | Quantum Router fried by hacking feedback 38731 | -4/Factory | Destroyed 7 combat bots 38754 | -4/Factory | Identified exit to Research 38754 | -4/Factory | Discovered exit to Research (range 30) 38964 | -4/Factory | Build established: Machinist-Executioner 39199 | -4/Factory | Discovered exit to Upper Caves (range 9) 39255 | -4/Factory | Reached level 28 39269 | -4/Factory | Upgraded with Weapon slot (x1) 39318 | -4/Factory | Sucked down chute 39318 | -4/Factory | Entered Waste 39339 | -4/Waste | Spotted C-40 Crusher 39344 | -4/Waste | Destroyed C-40 Crusher 39347 | -4/Waste | Spotted C-40 Crusher 39353 | -4/Waste | Destroyed C-40 Crusher 39356 | -4/Waste | Destroyed C-40 Crusher 39360 | -4/Waste | Spotted C-40 Crusher 39364 | -4/Waste | Destroyed C-40 Crusher 39375 | -4/Waste | Spotted C-40 Crusher 39375 | -4/Waste | Spotted C-40 Crusher 39424 | -4/Waste | Identified exit to Factory 39424 | -4/Waste | Discovered exit to Factory (range 26) 39453 | -4/Waste | Destroyed C-40 Crusher 39478 | -4/Waste | Entered Factory 39582 | -4/Factory | Discovered exit to Upper Caves (range 27) 39623 | -4/Factory | Spotted B-86 Titan 39633 | -4/Factory | Destroyed B-86 Titan 40047 | -4/Factory | Repaired Broken Force Lance 40144 | -4/Factory | Discovered exit to Research (range 24) 40810 | -4/Factory | Garrison activated, responded to threat 40839 | -4/Factory | Destroyed 7 combat bots 41041 | -4/Factory | Garrison activated, responded to threat 41169 | -4/Factory | Fabricated Imp. System Restoration Module? 41361 | -4/Factory | Fabricated Imp. Overload Regulator (x2) 41406 | -4/Factory | Destroyed 10 combat bots 41532 | -4/Factory | Destroyed 11 combat bots 41600 | -4/Factory | Discovered exit to Research (range 27) 41769 | -4/Factory | Destroyed 7 combat bots 41790 | -4/Factory | Discovered exit to Upper Caves (range 29) 42228 | -4/Factory | First assault squad dispatched 42354 | -4/Factory | Destroyed 11 combat bots 42369 | -4/Factory | System Mapper fried by hacking feedback 42620 | -4/Factory | Discovered exit to Research (range 20) 42707 | -4/Factory | Reached level 29 42720 | -4/Factory | Fabricated Imp. Particle Accelerator? 42856 | -4/Factory | Local fabrication network quarantined 42964 | -4/Factory | P-70 Sage assimilated allied G-67 Veteran 43540 | -4/Factory | Destroyed 7 combat bots 43572 | -4/Factory | Discovered exit to Research (range 29) 43718 | -4/Factory | High security lockdown imminent 43798 | -4/Factory | High security lockdown engaged 43908 | -4/Factory | Destroyed 7 combat bots 43986 | -4/Factory | Entered Upper Caves 43989 | -4/Upper Caves | Destroyed 16 combat bots 44181 | -4/Upper Caves | Spotted B-86 Titan 44186 | -4/Upper Caves | Destroyed B-86 Titan 44374 | -4/Upper Caves | Attracted the attention of an 0b10 checkpoint 44431 | -4/Upper Caves | Identified exit to Upper Caves 44431 | -4/Upper Caves | Discovered exit to Upper Caves (range 26) 44583 | -4/Upper Caves | Crushed by falling debris 44693 | -4/Upper Caves | Entered another Upper Caves area 44693 | -4/Upper Caves | Accompanied by 2 allies 44705 | -4/Upper Caves | Discovered exit to Research (range 9) 44834 | -4/Upper Caves | Found Alien Artifact 44834 | -4/Upper Caves | Identified Dimensional Node Initializer 44834 | -4/Upper Caves | Initialized slip node 44981 | -4/Upper Caves | Learned Research garrison access intel 45222 | -4/Upper Caves | Identified exit to Zhirov 45222 | -4/Upper Caves | Discovered exit to Zhirov (range 25) 45260 | -4/Upper Caves | Encountered a Warlord checkpoint 45324 | -4/Upper Caves | Attracted the attention of an 0b10 checkpoint 45341 | -4/Upper Caves | Entered Zhirov 45341 | -4/Zhirov | Identified exit to Proximity Caves 45341 | -4/Zhirov | Discovered exit to Proximity Caves (range 3) 45367 | -4/Zhirov | Met Zhirov 45395 | -4/Zhirov | Learned location of Quarantine (-2) 45395 | -4/Zhirov | Learned location of Command (-1) 45420 | -4/Zhirov | Zhirov requested help retrieving the SGEMP Prototype 45444 | -4/Zhirov | Found Alien Artifact 45444 | -4/Zhirov | Identified Integrated Reactor 45444 | -4/Zhirov | Installed Integrated Reactor, increased core energy generation (+2%) 45465 | -4/Zhirov | Found Alien Artifact 45465 | -4/Zhirov | Identified Transdimensional Reconstructor 45465 | -4/Zhirov | Warped through subspace 45575 | -4/Zhirov | Entered Proximity Caves 45762 | -3/Proximity Caves | Attracted the attention of an 0b10 checkpoint 45856 | -3/Proximity Caves | Spotted B-86 Titan 45873 | -3/Proximity Caves | Destroyed B-86 Titan 46158 | -3/Proximity Caves | Discovered exit to Research (range 29) 46280 | -3/Proximity Caves | Attracted the attention of an 0b10 base 46295 | -3/Proximity Caves | Reached level 30 46311 | -3/Proximity Caves | Learned 6 Lower Caves zone layouts 46311 | -3/Proximity Caves | Learned 6 Upper Caves zone layouts 46311 | -3/Proximity Caves | Learned Armory trap positions 46311 | -3/Proximity Caves | Learned Armory emergency access door positions 46311 | -3/Proximity Caves | Learned Extension terminal intel 46344 | -3/Proximity Caves | Destroyed 11 combat bots 46354 | -3/Proximity Caves | Entered Research 46355 | -3/Research | Identified exit to Armory 46355 | -3/Research | Identified exit to Testing 46356 | -3/Research | Identified exit to Research 46358 | -3/Research | Loaded intel: 3 garrison access locations 46398 | -3/Research | Upgraded with Weapon slot (x1) 47093 | -3/Research | Spotted B-86 Titan 47093 | -3/Research | Destroyed B-86 Titan 47104 | -3/Research | First assault squad dispatched 47164 | -3/Research | Fabricated Cld. Phase Gun (x1) 47465 | -3/Research | Reached level 31 47724 | -3/Research | Garrison activated, responded to threat 48179 | -3/Research | Found Prototype Device 48179 | -3/Research | Identified EM Disruption Field 48198 | -3/Research | Discovered exit to Testing (range 26) 48268 | -3/Research | Found Prototype Device 48268 | -3/Research | Identified Exp. Focal Shield 48752 | -3/Research | Discovered exit to Research (range 22) 48844 | -3/Research | Destroyed 8 combat bots 49025 | -3/Research | Fabricated Hdn. Centrium Wheel (x1) 49151 | -3/Research | Garrison activated, responded to threat 49172 | -3/Research | Discovered exit to Research (range 30) 49311 | -3/Research | Destroyed 9 combat bots 49396 | -3/Research | Destroyed 8 combat bots 49438 | -3/Research | Garrison activated, responded to threat 49441 | -3/Research | High security lockdown imminent 49471 | -3/Research | Found Enh. Force Lance 49521 | -3/Research | High security lockdown engaged 49597 | -3/Research | Spotted Striker 49598 | -3/Research | Destroyed Striker 49601 | -3/Research | Reached level 32 49604 | -3/Research | Upgraded with Weapon slot (x1) 49622 | -3/Research | Destroyed 8 combat bots 49783 | -3/Research | Destroyed 17 combat bots 49800 | -3/Research | Entered Armory 49801 | -3/Armory | Loaded intel: 43 trap records 50020 | -3/Armory | Fabricated Cld. Phase Gun (x1) 50114 | -3/Armory | Fabricated Cld. Phase Gun? 50181 | -3/Armory | Fabricated O-32 Director? 50269 | -3/Armory | Fabricated O-32 Director? 50288 | -3/Armory | Fabricated O-32 Director? 50300 | -3/Armory | First assault squad dispatched 50409 | -3/Armory | Destroyed 7 combat bots 50493 | -3/Armory | Local fabrication network quarantined 50566 | -3/Armory | Discovered exit to Research (range 24) 50592 | -3/Armory | Spotted B-86 Titan 50595 | -3/Armory | Destroyed B-86 Titan 50751 | -3/Armory | Assisted by bots powering up and referring to "LRC-V3" 50790 | -3/Armory | Discovered exit to Research (range 24) 50790 | -3/Armory | Crushed by falling debris 50790 | -3/Armory | Core integrity fell below 50% 50800 | -3/Armory | High security lockdown imminent 50860 | -3/Armory | Identified exit to Lab 50860 | -3/Armory | Discovered exit to Lab (range 24) 50880 | -3/Armory | High security lockdown engaged 50891 | -3/Armory | Entered Lab 50891 | -3/Lab | Discovered exit to Research (range 9) 50907 | -3/Lab | Unable to decrypt terminal 50907 | -3/Lab | Opened the door to a hidden lab 50908 | -3/Lab | Gained access to the hidden lab's interior 50918 | -3/Lab | Detected by scanners 50924 | -3/Lab | Confronted by A5 50929 | -3/Lab | Destroyed A5 50981 | -3/Lab | Unable to decrypt terminal 50981 | -3/Lab | Unable to decrypt terminal 50981 | -3/Lab | Unable to decrypt terminal 51027 | -3/Lab | Found Prototype Special Weapon 51027 | -3/Lab | Identified Gui. Remote Datajack 51068 | -3/Lab | Found Alien Artifact 51068 | -3/Lab | Identified Core Expander 51068 | -3/Lab | Installed Core Expander, added new Utility slot 51079 | -3/Lab | Found Integrated Reactor 51079 | -3/Lab | Installed Integrated Reactor, increased core energy generation (+2%) 51090 | -3/Lab | Found Transdimensional Reconstructor 51090 | -3/Lab | Warped through subspace 51104 | -3/Lab | Unable to decrypt terminal 51121 | -3/Lab | Found Prototype Energy Gun 51121 | -3/Lab | Identified Tachyon Dispersion Ray 51126 | -3/Lab | Found Prototype Energy Gun 51126 | -3/Lab | Identified Hyp. EM Gauss Rifle 51137 | -3/Lab | Found Prototype Protection 51137 | -3/Lab | Identified Exp. Powered Armor 51142 | -3/Lab | Found Quantum Router 51200 | -3/Lab | Entered Research 51200 | -2/Research | Warlord forces began assault on 0b10 51202 | -2/Research | Reached level 33 51267 | -2/Research | Identified exit to Access 51267 | -2/Research | Discovered exit to Access (range 29) 51310 | -2/Research | Research machine network offline 51354 | -2/Research | Identified exit to Quarantine 51354 | -2/Research | Discovered exit to Quarantine (range 30) 51452 | -2/Research | Borebot progress halted 51458 | -2/Research | Borebot progress halted 51497 | -2/Research | Borebot progress halted 51580 | -2/Research | Found Prototype Device 51580 | -2/Research | Identified Exp. Shield Generator 51653 | -2/Research | Borebot progress halted 51879 | -2/Research | Spotted Tracker 51879 | -2/Research | Spotted Tracker 51883 | -2/Research | Destroyed Tracker 51886 | -2/Research | Destroyed Tracker 51921 | -2/Research | Spotted Combat Programmer 51923 | -2/Research | Spotted Combat Programmer 51924 | -2/Research | Destroyed Combat Programmer 51927 | -2/Research | Destroyed Combat Programmer 51983 | -2/Research | Warlord destroyed during the assault 52003 | -2/Research | Spotted Tracker 52003 | -2/Research | Spotted Tracker 52003 | -2/Research | Spotted Tracker 52007 | -2/Research | Destroyed Tracker 52007 | -2/Research | Destroyed Tracker 52010 | -2/Research | Destroyed Tracker 52025 | -2/Research | Spotted Combat Programmer 52028 | -2/Research | Destroyed Combat Programmer 52028 | -2/Research | Spotted Combat Programmer 52031 | -2/Research | Destroyed Combat Programmer 52037 | -2/Research | Found Prototype Device 52037 | -2/Research | Identified Exp. Phase Shifter 52060 | -2/Research | Spotted Combat Programmer 52061 | -2/Research | Destroyed Combat Programmer 52082 | -2/Research | Destroyed 8 combat bots 52104 | -2/Research | Spotted Striker 52105 | -2/Research | Destroyed Striker 52161 | -2/Research | Found Prototype Device 52161 | -2/Research | Identified Exp. Actuator Array 52232 | -2/Research | Spotted Striker 52234 | -2/Research | Spotted Striker 52235 | -2/Research | Destroyed Striker 52238 | -2/Research | Destroyed Striker 52268 | -2/Research | Spotted Striker 52269 | -2/Research | Destroyed Striker 52485 | -2/Research | Discovered exit to Access (range 28) 52554 | -2/Research | Entered Access 52556 | -1/Access | Reached level 34 52858 | -1/Access | Found Prototype Device 52858 | -1/Access | Identified Adv. Kinecellerator 52907 | -1/Access | Intercept squad dispatched 52911 | -1/Access | Spotted Tracker 52911 | -1/Access | Spotted Tracker 52914 | -1/Access | Destroyed Tracker 52917 | -1/Access | Destroyed Tracker 52929 | -1/Access | Spotted Combat Programmer 52936 | -1/Access | Destroyed Combat Programmer 52990 | -1/Access | Spotted Combat Programmer 52996 | -1/Access | Destroyed Combat Programmer 53253 | -1/Access | Spotted B-99 Colossus 53261 | -1/Access | Destroyed B-99 Colossus 53274 | -1/Access | Identified exit to Command 53274 | -1/Access | Discovered exit to Command (range 28) 53376 | -1/Access | Reached level 35 53417 | -1/Access | Destroyed 9 combat bots 53492 | -1/Access | Fabricated Adv. Particle Accelerator (x1) 53571 | -1/Access | Entered Command 53605 | -1/Command | Found Nanosword 53691 | -1/Command | Disengaged cave seal 53801 | -1/Command | Found Prototype Device 53801 | -1/Command | Identified Beam Splitter 53927 | -1/Command | Identified exit to Surface 53927 | -1/Command | Discovered exit to Surface (range 24) 54179 | -1/Command | Spotted M Guard 54180 | -1/Command | Spotted M Guard 54182 | -1/Command | Spotted Combat Programmer 54182 | -1/Command | Spotted Combat Programmer 54183 | -1/Command | Core integrity fell below 50% 54186 | -1/Command | Core integrity fell below 20% 54187 | -1/Command | Destroyed M Guard 54192 | -1/Command | Destroyed M Guard 54195 | -1/Command | Destroyed Combat Programmer 54195 | -1/Command | Destroyed Combat Programmer 54195 | -1/Command | Reached level 36 54195 | -1/Command | Destroyed all MAIN.C guards 54226 | -1/Command | Lost 3 parts (3w) 54280 | -1/Command | Found Prototype Energy Cannon 54280 | -1/Command | Identified Cld. Nova Cannon 54283 | -1/Command | Found Prototype Launcher 54283 | -1/Command | Identified Hellfire Missile Launcher 54293 | -1/Command | Found Prototype Reactor 54293 | -1/Command | Identified Zero-point Reactor 54301 | -1/Command | Found Prototype Device 54301 | -1/Command | Identified AEGIS Remote Shield 54306 | -1/Command | Found Prototype Device 54306 | -1/Command | Identified Thermal Barrier 54470 | -1/Command | Met MAIN.C 54475 | -1/Command | 0b10 Conduit disabled 54478 | -1/Command | Destroyed MAIN.C Shell 54481 | -1/Command | MAIN.C activated Command garrisons 54501 | -1/Command | Reached level 37 54501 | -1/Command | Destroyed MAIN.C 54543 | -1/Command | Discovered exit to Surface (range 24) 54886 | *** | Establishing 0b11! Last Messages --------------- 54669_ Prc. Energy Filter severed. 54669_ Cld. Phase Gun severed. 54679_ Acquired Hdn. Centrium Wheel. 54680_ Triggered Blade Trap. 54680_ Massive razor-sharp blades shoot up from within the floor. 54680_ Cld. Nova Cannon severed. 54680_ Cld. Phase Gun severed. 54682_ Acquired Prc. Energy Filter. 54684_ Acquired Cld. Nova Cannon. 54687_ Acquired Cld. Phase Gun. 54726_ Wave Inhibitor disabled. 54829_ Destroyed Adv. Remote Datajack. 54829_ Destroyed Imp. Antigrav System. 54829_ Destroyed Lgt. Particle Reactor. 54829_ Destroyed Gamma Rifle. 54829_ Gamma Rifle melted. 54829_ P-80 Master destroyed. 54833_ Acquired 5 matter. 54839_ Acquired 85 matter. [Achievement: Commander 0b11] Map ----- +----------------------------------------------------+ | ??????????? ??? ###??##?#?? ?? ?? #?###??????? | | ????????#?????#??+??#?#?####?? ??"? ##????#????# | | ????????????#???????? ??####? "?""? #??##??##??? | | ??????#??? ??? ?? ?###### ?"""" # ??##?##?## | | ??????????? ?# ? ??""???####????"? ? ##?#?###?### | | ???????? ? ? #? ??""? # ? ?? ?? ? ? ## #?##?#### | | ???? ??? ? ?? """" ####??? ? ? ## ?#??#?#?# | | ????????? ??+ ?"?"" ###?######+###??? ?#?#?#### | | ??? ? ? ???? ? ###??#? ? ########?#?##### | | ????#????? ? # ? ####?#? ?# ? ?###### | | ???#?????#??##?##?######?#### # ####### | | ?#??? ? ? ?? ##?# # # ?"" ####### | | ?????#? # # # # ?""" ####### | | ??#### #### # # """" ####### | | ????## #### + + "" ####### | | #?## ? #### # # ####### | | ?### # # # # ####### | | ?#### #### # # ####### | | #### #### #### + ####### | | #####"""+##################### ################ | | ? #################### # ####### | | #################### # ####### | | #################### # ####### | | ############# # ####### | | ############# + ####### | | ""Y" ############# @ ##### # "" #####"" | | """"" ############# ##### # """" #####"" | | ################### # """" #####"" | | ################### # "" #####"" | | ##################### ##############" | | ###+## ########## ##############"" | | # # ########## ##############"" | | + # """" ########## ############## " | | "" # # """" ########## ### ##### " | | """ # # """" ########## ### ##### " | | """ # # """" ########## ### #####"" | | "" + # ########## ### #####"" | | ###### ########## ### ##### | | "########+############### =### # ### | | ##### *#############![#######"###### | | !! !% !!!%= *%! * [ *=%!%!*%=[[=%!=% | | !! ] != = *!=[ =*=%=[=%[[!=%%= | | ! [! [%[ ==* =*!!!%!%!! | | ###" ####" ""#####+#########"##[%!###### | | ############# = ##### ## # !# #### | | #############!% ##### ## # ###### | | ############# ##### "" ## # ######## | | #############= ##### """" ## # ######## | | #############%= ##### """" ## # ######## | | # # # ### "" ## # ######## | +----------------------------------------------------+ Best States ------------- Heat Dissipation 141 Coolant Potential 120 Energy Generation 90 Energy Capacity 3120 Matter Stores 300 Matter Capacity 300 Sight Range 16 Robot Scan Range 30 Terrain Scan Range 30 Terrain Scan Density 510 Cloak Strength 4 Power Amplification 40 Additional Mass Support 10 Armor Coverage 100 Resistance: KI 55 Resistance: TH 85 Resistance: EX 55 Resistance: EM 50 Resistance: I 50 Resistance: S 50 Resistance: P 50 Propulsion Shielding 33 Weapon Shielding 100 Weapon Cycling 25 Phase Shifting 20 Evasion (%) 60 Targeting Accuracy 8 Launcher Accuracy 40 Core Analysis 10 Energy Filtering 50 Particle Charging 50 Kinecelleration 50 Overload Amplification 75 Overload Regulation 60 Offensive Hacking 40 Defensive Hacking 45 Item Schematics ----------------- ECM Suite | -10/Materials | Hacked Wheel | -10/Materials | Hacked Mak. Sword | -8/Materials | Scanalyzed Datajack | -8/Materials | Scanalyzed Mni. Grenade Launcher | -8/Materials | Scanalyzed Lightning Gun | -8/Materials | Scanalyzed Exp. Sensor Array | -8/Materials | Scanalyzed Hcp. Battery | -8/Materials | Scanalyzed Arm. Wheel | -8/Materials | Scanalyzed Seismic Analyzer | -8/Materials | Extracted Hpw. Shotgun | -8/Materials | Extracted Com. Battery | -8/Materials | Extracted Adv. EMP Blaster | -8/Materials | Extracted Adv. Terrain Scanner | -8/Materials | Hacked Imp. Datajack | -8/Materials | Hacked Particle Charger | -8/Materials | Scanalyzed Disposable Heat Sink | -8/Materials | Scanalyzed Electrolaser | -8/Materials | Scanalyzed Pulse Rifle | -8/Materials | Scanalyzed Lgt. Nuclear Core | -8/Materials | Scanalyzed Imp. Treads | -8/Materials | Extracted Imp. Terrain Scan Processor | -8/Materials | Extracted Transmission Jammer | -8/Materials | Extracted Imp. ECM Suite | -8/Materials | Extracted Imp. Deuterium Engine | -8/Storage | Hacked Imp. Targeting Computer | -8/Storage | Hacked Cld. Ion Engine | -8/Storage | Hacked EM Shield | -8/Storage | Hacked Imp. Heat Sink | -8/Storage | Hacked Weapon Cycler | -8/Storage | Hacked Coolant Injector | -8/Storage | Hacked Thermal Generator | -8/Storage | Hacked Cld. Pulse Rifle | -7/Factory | Hacked Remote Datajack | -7/Factory | Scanalyzed Imp. Light Cannon | -7/Factory | Extracted Imp. Medium Armor Plating | -7/Factory | Extracted Arc Projector | -7/Factory | Extracted Hrd. Medium Armor Plating | -7/Factory | Extracted Ion Cannon | -7/Factory | Extracted Lgt. Deuterium Engine | -7/Factory | Extracted Kinecellerator | -7/Factory | Extracted Hvy. Mace | -7/Factory | Extracted Matter Filter | -7/Factory | Extracted Energy Filter | -7/Factory | Scanalyzed Imp. Heat Shielding | -7/Factory | Extracted Propulsion Shielding | -7/Factory | Extracted Lrg. Matter Pod | -7/Factory | Extracted Lgt. EM Pulse Cannon | -7/Factory | Extracted Imp. Weapon Shielding | -7/Factory | Extracted Minigun | -7/Factory | Extracted Hvy. Deuterium Engine | -7/Factory | Extracted Hardlight Generator | -7/Factory | Extracted Lrn. Sensor Array | -7/Factory | Extracted Lrn. Tractor Beam | -7/Factory | Extracted Combat Drone Bay | -7/Data Miner | Free Lgt. Regenerative Plating | -7/Data Miner | Free Triangulator | -7/Data Miner | Free Exp. Terrain Scanner | -7/Data Miner | Free Exp. Terrain Scan Processor | -7/Data Miner | Free Cloaking Device | -7/Data Miner | Free Mni. Smartbomb Launcher | -7/Data Miner | Free Kinetic Spear | -7/Data Miner | Free Overload Amplifier | -6/Factory | Hacked System Backup Module | -6/Factory | Scanalyzed Cld. Deuterium Engine | -6/Factory | Scanalyzed Imp. Energy Well | -6/Factory | Scanalyzed Adv. Particle Charger | -6/Factory | Scanalyzed Hpw. Electrolaser | -6/Factory | Scanalyzed Gauss Cannon | -6/Factory | Extracted Powered Hammer | -6/Factory | Extracted Lyr. Light Armor Plating | -6/Factory | Extracted Cld. Plasma Cannon | -6/Factory | Extracted System Restoration Module | -6/Factory | Hacked Force Field | -6/Factory | Extracted Com. Matter Pod | -6/Factory | Extracted Imp. Coolant Injector | -6/Factory | Hacked Overload Regulator | -6/Factory | Hacked Imp. Weapon Cycler | -6/Factory | Hacked Imp. Hacking Suite | -6/Factory | Hacked Plasma Cannon | -6/Factory | Extracted Imp. Gravmag System | -6/Factory | Extracted Battle Rifle | -6/Zion | Free Battle Cannon | -6/Zion | Free Flamer | -6/Zion | Free Prc. Energy Filter | -5/Factory | Hacked Cld. Phase Gun | -5/Factory | Hacked Imp. Remote Datajack | -5/Factory | Scanalyzed Phasing Sabre | -5/Factory | Scanalyzed Imp. System Restoration Module | -5/Factory | Hacked Cld. Fission Core | -5/Factory | Hacked Adv. Coolant Injector | -5/Factory | Hacked Adv. Weapon Cycler | -5/Factory | Hacked Imp. Overload Amplifier | -5/Factory | Hacked Stasis Canceller | -5/Factory | Hacked Point Defense Array | -5/Factory | Hacked Q-thruster | -5/Factory | Hacked Particle Accelerator | -4/Factory | Hacked Centrium Wheel | -4/Factory | Hacked Adv. Datajack | -4/Factory | Scanalyzed Dynamic Insulation System | -4/Factory | Extracted Enh. Gauss Cannon | -4/Factory | Extracted Adv. Thermal Shield | -4/Factory | Extracted System Shield | -4/Factory | Extracted Imp. Overload Regulator | -4/Factory | Hacked Mass Driver | -4/Factory | Extracted Imp. Plasma Cutter | -4/Factory | Extracted Force Lance | -4/Factory | Scanalyzed Cld. Plasma Rifle | -4/Factory | Scanalyzed Power Sword | -4/Factory | Extracted Thermal Converter | -4/Factory | Extracted Hyp. Mass Driver | -4/Factory | Extracted Impulse Thruster | -4/Factory | Extracted Quantum Capacitor | -4/Factory | Extracted Imp. Arc Projector | -4/Factory | Extracted Dispersion Rifle | -4/Factory | Extracted Imp. Particle Accelerator | -4/Factory | Hacked Hdn. Centrium Wheel | -4/Factory | Hacked Assault Drone Bay | -4/Zhirov | Free Exp. Heat Sink | -4/Zhirov | Free Exp. Optical Array | -4/Zhirov | Free Imp. Arc Thrower | -4/Zhirov | Free Adv. Remote Datajack | -3/Research | Scanalyzed Imp. Field Recycling Unit | -2/Research | Extracted Matter Neutralizer | -2/Research | Extracted Adv. Power Amplifier | -2/Research | Extracted Reaction Control System | -2/Research | Extracted Adv. Particle Accelerator | -1/Access | Hacked Exp. Weapon Cycler | -1/Access | Hacked Robot Schematics ------------------ O-16 Technician | -10/Materials | Hacked M-13 Machinist | -10/Materials | Hacked O-24 Administrator | -8/Materials | Hacked M-28 Smith | -8/Materials | Hacked B-36 Bruiser | -8/Storage | Hacked D-53 Grenadier | -8/Storage | Hacked S-27 Virus | -7/Data Miner | Free G-50 Soldier | -7/Data Miner | Free H-66 Slayer | -7/Data Miner | Free P-70 Sage | -7/Data Miner | Free I-36 Angel | -7/Data Miner | Free O-32 Director | -5/Factory | Hacked Fabricated ------------ Cld. Pulse Rifle | x1 | -7/Factory Cld. Pulse Rifle | x1 | -7/Factory Cld. Pulse Rifle | x1 | -7/Factory Cld. Pulse Rifle | x1 | -7/Factory Cld. Pulse Rifle | x1 | -7/Factory Cld. Pulse Rifle | x1 | -7/Factory Overload Amplifier | x2 | -6/Factory Exp. Terrain Scanner | x1 | -6/Factory Imp. Weapon Cycler | x2 | -5/Factory Prc. Energy Filter | x1 | -5/Factory Cld. Phase Gun | x1 | -5/Factory Cld. Phase Gun | x1 | -5/Factory Cld. Phase Gun | x1 | -5/Factory Adv. Weapon Cycler | x2 | -5/Factory Cld. Phase Gun | x1 | -5/Factory Cld. Phase Gun | x1 | -5/Factory Cld. Phase Gun | x1 | -5/Factory Cld. Phase Gun | x1 | -5/Factory Imp. System Restoration Module | x1 | -5/Factory Imp. Overload Amplifier | x2 | -5/Factory Cld. Fission Core | x1 | -5/Factory Particle Accelerator | x1 | -4/Factory Cld. Phase Gun | x1 | -4/Factory Imp. System Restoration Module | x1 | -4/Factory Imp. Overload Regulator | x2 | -4/Factory Imp. Particle Accelerator | x1 | -4/Factory Cld. Phase Gun | x1 | -3/Research Hdn. Centrium Wheel | x1 | -3/Research Cld. Phase Gun | x1 | -3/Armory Cld. Phase Gun | x1 | -3/Armory O-32 Director | x1 | -3/Armory O-32 Director | x1 | -3/Armory O-32 Director | x1 | -3/Armory Adv. Particle Accelerator | x1 | -1/Access Alien Tech Used ----------------- Dimensional Node Initializer Integrated Reactor Transdimensional Reconstructor Core Expander Achievements -------------- Commander 0b11 Challenges ------------ None RPGLIKE | -11 -10 -10 -10 -9 -8 -8 -7 -7 -7 -7 -6 -6 -6 -6 -6 -6 -5 -5 -5 -5 -5 -4 -4 -4 -4 -4 -4 -4 -3 -3 -3 -3 -2 -1 -1 --------- Run | Scr Mat Min Exi Min Mat Sto Fac Low Low Dat Pro Fac Low Low Zio Dee Pro Fac Upp Upp War Pro Fac Was Fac Upp Upp Zhi Pro Res Arm Lab Res Acc Com Levels Raised 36 | . 1 1 . 1 8 2 4 . . . 1 3 . . . . 1 2 . . . 1 2 . 1 . . . 1 2 . . 1 2 2 XP Earned 60300 | 6000 2599 1000 350 1576 11361 3273 6233 121 288 121 1235 3996 75 113 73 224 947 3240 160 73 111 976 2372 22 2120 68 96 50 747 3068 667 368 1403 2126 3048 XP Spent 55250 | 3520 2650 750 . 1400 7300 5700 3740 . 1000 2600 . . . 100 . 7140 . 4450 . . . 2300 2600 . . . . . . 6100 900 . . 2700 300 Upgrades 76 | 9 4 1 . 1 15 3 7 . 1 1 . . . 1 . 11 . 2 . . . 1 1 . . . . . . 2 4 . . 6 6 Power Slot 1 | . . . . . 1 . . . . . . . . . . . . . . . . . . . . . . . . . . . . . . Utility Slot 10 | 1 2 . . . 2 1 1 . . 1 . . . . . 1 . 1 . . . . . . . . . . . . . . . . . Weapon Slot 10 | 3 . . . 1 . 2 . . . . . . . . . . . . . . . 1 1 . . . . . . 2 . . . . . Core Integrity 6 | . . . . . . . . . . . . . . . . . . . . . . . . . . . . . . . . . . . 6 Heat Dissipation 15 | 4 . . . . 3 . 6 . . . . . . . . 2 . . . . . . . . . . . . . . . . . . . Energy Generation 1 | 1 . . . . . . . . . . . . . . . . . . . . . . . . . . . . . . . . . . . Mass Support 1 | . . . . . . . . . . . . . . 1 . . . . . . . . . . . . . . . . . . . . . Inventory Capacity 5 | . 2 1 . . . . . . 1 . . . . . . . . 1 . . . . . . . . . . . . . . . . . Terrain Scan Density 5 | . . . . . 5 . . . . . . . . . . . . . . . . . . . . . . . . . . . . . . Hack Attack % 4 | . . . . . . . . . . . . . . . . . . . . . . . . . . . . . . . . . . 4 . Hack Defense % 2 | . . . . . . . . . . . . . . . . . . . . . . . . . . . . . . . . . . 2 . KI Resistance % 4 | . . . . . . . . . . . . . . . . 4 . . . . . . . . . . . . . . . . . . . TH Resistance % 4 | . . . . . . . . . . . . . . . . 4 . . . . . . . . . . . . . . . . . . . EX Resistance % 4 | . . . . . . . . . . . . . . . . . . . . . . . . . . . . . . . 4 . . . . TH Damage % 4 | . . . . . 4 . . . . . . . . . . . . . . . . . . . . . . . . . . . . . . Protomatter Created 27981 | . 275 101 . 51 881 393 2256 56 146 192 528 2624 . 58 246 752 597 2595 30 . 171 780 1634 96 4672 259 235 . 498 3596 1820 . 1192 930 317 Integrity Restored 19356 | . 235 188 . 59 780 313 1384 158 97 549 535 2955 191 103 111 1756 218 1557 71 . 92 171 820 . 1550 136 215 . 377 1764 922 . 1013 364 672 Core 12106 | . 125 183 . 29 532 221 1008 125 61 331 314 2116 44 70 85 1378 58 526 20 . 19 49 245 . 397 58 178 . 291 1247 665 . 772 287 672 Parts 7250 | . 110 5 . 30 248 92 376 33 36 218 221 839 147 33 26 378 160 1031 51 . 73 122 575 . 1153 78 37 . 86 517 257 . 241 77 . Protomatter Decayed 39799 | . 186 121 . 30 998 936 1792 . 54 . 280 1753 . . 182 218 518 2588 4 . 1911 539 1935 96 3591 212 137 . 178 3027 1834 . 6422 942 9315 Game ------ Seed FieldNodeSplitter Manual? 1 Play Time 09:55:44 Cumulative 421.9 hours Start 2020.05.03 @ 20:02:32 End 2020.05.04 @ 12:44:13 Sessions 3 Manual Loads 0 Difficulty Explorer Special Mode Winter2019/RPGLIKE Game No. 44 Rogue 1 Adventurer 3 Explorer 40 Win Type 1 Total 20 Types 18/1/1/0/0/0/0 Lore% 72 Gallery% 89 Achievement% 87 Wizard Run 0 Options --------- ASCII 0 Keyboard 1 Movement Vi Keybinds 0 Fullscreen 2 Font 24/Terminus Map View 76x50 Tactical HUD 1 Map Filters NONE Filters NONE Steam 1 RUN: 75353c76-f484-4fd2-ab7d-78dbdf50b002